Workbook

Sheet 1. Info
AB1: Algoma Power Inc.
AB2: Atikokan Hydro Inc.
AB3: Attawapiskat Power Corporation
AB4: Bluewater Power Distribution Corp.
AB5: Brant County Power
AB6: Brantford Power Inc.
AB7: Burlington Hydro Inc.
AB8: Cambridge and North Dumfries Hydro
AB9: Canadian Niagara Power Inc. – Eastern Ontario Power/Fort Erie/Port Colborne
AB10: Centre Wellington Hydro Ltd.
AB11: Chapleau Public Utilities Corporation
AB12: COLLUS Power Corp.
AB13: Cooperative Hydro Embrun Inc.
AB14: E.L.K. Energy Inc.
C15: Utility Name | D15: Haldimand County Hydro Inc. | AB15: Enersource Hydro Mississauga Inc.
AB16: Entegrus Powerlines Inc.
C17: Assigned EB Number | D17: EB-2012-0129 | AB17: ENWIN Utilities Ltd.
AB18: Erie Thames Powerlines Corp.
C19: Name and Title | D19: Jacqueline A. Scott | AB19: Espanola Regional Hydro Distribution Corporation
AB20: Essex Powerlines Corporation
C21: Phone Number | D21: 905-765-5211 ext.2237 | AB21: Festival Hydro Inc.
AB22: Fort Albany Power Corporation
C23: Email Address | D23: jscott@hchydro.ca | AB23: Fort Frances Power Corporation
AB24: Greater Sudbury Hydro Inc.
C25: Date | D25: 2012-10-22 | AB25: Grimsby Power Inc.
AB26: Guelph Hydro Electric Systems Inc.
C27: Last COS Re-based Year | D27: 2010 | AB27: Haldimand County Hydro Inc.
AB28: Halton Hills Hydro Inc.
AB29: Hearst Power Distribution Co. Ltd.
A30: Note: Drop-down lists are shaded blue; Input cells are shaded green.
AB32: Horizon Utilities Corporation
AB33: Hydro 2000 Inc.
AB34: Hydro Hawkesbury Inc.
AB35: Hydro One Brampton Networks Inc.
AB36: Hydro One Networks Inc.
AB37: Hydro One Remote Communities Inc.
AB38: Hydro Ottawa Limited
AB39: Innisfil Hydro Dist. Systems Limited
AB40: Kashechewan Power Corporation
AB41: Kenora Hydro Electric Corporation Ltd.
AB42: Kingston Hydro Corporation
AB43: Kitchener-Wilmot Hydro Inc.
AB44: Lakefront Utilities Inc.
AB45: Lakeland Power Distribution Ltd.
AB46: London Hydro Inc.
AB47: Midland Power Utility Corporation
AB48: Milton Hydro Distribution Inc.
AB49: Newmarket – Tay Power Distribution Ltd.
AB50: Niagara Peninsula Energy Inc.
AB51: Niagara-on-the-Lake Hydro Inc.
AB52: Norfolk Power Distribution Ltd.
AB53: North Bay Hydro Distribution Limited
AB54: Northern Ontario Wires Inc.
AB55: Oakville Hydro Distribution Inc.
AB56: Orangeville Hydro Limited
AB57: Orillia Power Distribution Corp.
AB58: Oshawa PUC Networks Inc.
AB59: Ottawa River Power Corporation
AB60: Parry Sound Power Corporation
AB61: Peterborough Distribution Inc.
AB62: PowerStream Inc.
AB63: PUC Distribution Inc.
AB64: Renfrew Hydro Inc.
AB65: Rideau St. Lawrence Distribution Inc.
AB66: St. Thomas Energy Inc.
AB67: Sioux Lookout Hydro Inc.
AB68: Thunder Bay Hydro Electricity Distribution
AB69: Tillsonburg Hydro Inc.
AB70: Toronto Hydro-Electric System Limited
AB71: Veridian Connections Inc.
AB72: Wasaga Distribution Inc.
AB73: Waterloo North Hydro Inc.
AB74: Welland Hydro Electric System Corp.
AB75: Wellington North Power Inc.
AB76: West Coast Huron Energy Inc.
AB77: Westario Power Inc.
AB78: Whitby Hydro Electric Corporation
AB79: Woodstock Hydro Services Inc.

Sheet 2. Table of Contents
D20: 1. Info | I20: 7. Current Wholesale
D22: 2. Table of Contents | I22: 8. Forecast Wholesale
D24: 3. Rate Classes | I24: 9. Adj Network to Current WS
D26: 4. RRR Data | I26: 10. Adj Conn. to Current WS
D28: 5. UTRs and Sub-Transmission | I28: 11. Adj Network to Forecast WS
D30: 6. Historical Wholesale | I30: 12. Adj Conn. to Forecast WS
I32: 13. Final 2013 RTS Rates

Sheet 3. Rate Classes
C13: 1. Select the appropriate rate classes that appear on your most recent Board-Approved Tariff of Rates and Charges. 2. Enter the RTS Network and Connection Rate as it appears on the Tariff of Rates and Charges
C22: Rate Class | H22: Unit | J22: RTSR-Network | M22: RTSR-Connection
C24: Embedded Distributor | H24: kW | J24: 2.1063 | M24: 1.8422 | Q24: =IF(OR(ISBLANK(C24), ISERROR(FIND("Choose", C24))=FALSE), 0, 1) -> 1 | R24: ="C" & ROW(C24) -> C24 | S24: =IF(OR(C24="General Service Intermediate Rate Class 1,000 To 4,999 kW (formerly General Service > 50 kW Customers)", C24="General Service Intermediate Rate Class 1,000 To 4,999 kW (formerly Large Use Customers)"), "x", "") ->  | AB24: Choose Rate Class
C25: Choose Rate Class | Q25: 0 | R25: C25 | S25: =IF(OR(C25="General Service Intermediate Rate Class 1,000 To 4,999 kW (formerly General Service > 50 kW Customers)", C25="General Service Intermediate Rate Class 1,000 To 4,999 kW (formerly Large Use Customers)"), "x", "") ->  | AB25: Residential
C26: Choose Rate Class | Q26: 0 | R26: C26 | AB26: Residential Regular
C27: Choose Rate Class | Q27: 0 | R27: C27 | AB27: Residential Urban
C28: Choose Rate Class | Q28: 0 | R28: C28 | AB28: Residential Urban Year-Round
C29: Choose Rate Class | Q29: 0 | R29: C29 | AB29: Residential Suburban
C30: Choose Rate Class | Q30: 0 | R30: C30 | AB30: Residential Suburban Seasonal
C31: Choose Rate Class | Q31: 0 | R31: C31 | AB31: Residential Suburban Year Round
C32: Choose Rate Class | Q32: 0 | R32: C32 | AB32: Residential - Time of Use
C33: Choose Rate Class | Q33: 0 | R33: C33 | AB33: Residential - Hensall
C34: Choose Rate Class | Q34: 0 | R34: C34 | AB34: Residential – High Density [R1]
C35: Choose Rate Class | Q35: 0 | R35: C35 | AB35: Residential – Normal Density [R2]
C36: Choose Rate Class | Q36: 0 | R36: C36 | AB36: Seasonal Residential – High Density [R3]
C37: Choose Rate Class | Q37: 0 | R37: C37 | AB37: Seasonal Residential – Normal Density [R4]
C38: Choose Rate Class | Q38: 0 | R38: C38 | AB38: Residential – Urban [UR]
C39: Choose Rate Class | Q39: 0 | R39: C39
C40: Choose Rate Class | Q40: 0 | R40: C40 | AB40: General Service Less Than 50 kW
C41: Choose Rate Class | Q41: 0 | R41: C41 | AB41: General Service Less Than 50 kW – Single Phase energy-billed [G1]
C42: Choose Rate Class | Q42: 0 | R42: C42 | AB42: General Service Less Than 50 kW – Three Phase energy-billed [G3]
C43: Choose Rate Class | Q43: 0 | R43: C43 | AB43: General Service Less Than 50 kW – Transmission Class energy-billed [T]
C44: Choose Rate Class | Q44: 0 | R44: C44 | AB44: General Service Less Than 50 kW – Urban energy-billed [UG]
C45: Choose Rate Class | Q45: 0 | R45: C45 | AB45: Westport Sewage Treatment Plant
S46: =COUNTIF(S24:S45, "x") -> 0 | AB46: Small Commercial and USL - per meter
AB47: Small Commercial and USL - per connection
AB48: Farms – Single Phase energy-billed [F1]
AB50: General Service 50 to 499 kW
AB51: General Service 50 to 699 kW
AB52: General Service 50 to 999 kW
AB53: General Service 50 to 999 kW - Interval Metered
AB54: General Service 50 to 1,000 kW
AB55: General Service 50 to 1,000 kW - Interval Meters
AB56: General Service 50 to 1,000 kW - Non Interval Meters
AB57: General Service 50 to 1,499 kW
AB58: General Service 50 to 1,499 kW - Interval Metered
AB59: General Service 50 to 2,499 kW
AB60: General Service 50 to 2,999 kW
AB61: General Service 50 to 2,999 kW - Time of Use
AB62: General Service 50 to 4,999 kW
AB63: General Service 50 to 4,999 kW – Interval Metered
AB64: General Service 50 to 4,999 kW - Time of Use
AB65: General Service 50 to 4,999 kW (CoGeneration)
AB66: General Service 50 to 4,999 kW (formerly Time of Use)
AB67: General Service 500 to 4,999 kW
AB68: General Service 700 to 4,999 kW
AB69: General Service 1,000 to 2,999 kW
AB70: General Service 1,000 to 4,999 kW
AB71: General Service 1,000 to 4,999 kW - Interval Meters
AB72: General Service 1,000 To 4,999 kW (co-generation)
AB73: General Service Greater Than 1,000 kW
AB74: General Service Intermediate Rate Class 1,000 To 4,999 kW (formerly Large Use Customers)
AB75: General Service Intermediate Rate Class 1,000 To 4,999 kW (formerly General Service > 50 kW Customers)
AB76: General Service 1,500 to 4,999 kW
AB77: General Service Equal To Or Greater Than 1,500 kW
AB78: General Service Equal To Or Greater Than 1,500 kW - Interval Metered
AB79: General Service Intermediate 1,000 To 4,999 kW
AB80: General Service 2,500 to 4,999 kW
AB81: General Service 3,000 to 4,999 kW
AB82: General Service 3,000 to 4,999 kW - Interval Metered
AB83: General Service 3,000 to 4,999 kW - Intermediate Use
AB84: General Service 3,000 to 4,999 kW - Time of Use
AB85: Intermediate With Self Generation
AB86: General Service - Commercial
AB87: General Service - Institutional
AB88: Farms – Three Phase energy-billed [F3]
AB90: Large Use
AB91: Large Use - Regular
AB92: Large Use > 5000 kW
AB93: Large Use - 3TS
AB94: Large Use - Ford Annex
AB96: Unmetered Scattered Load
AB98: Sentinel Lighting
AB100: Street Lighting
AB102: Embedded Distributor
AB103: Low Voltage Wheeling Charge Rate
AB105: Stand-By
AB106: Standby Power
AB107: Standby Power – INTERIM APPROVAL
AB108: Standby Power - APPROVED ON AN INTERIM BASIS
AB109: Standby - General Service 50 - 1,000 kW
AB110: Standby Power General Service 50 to 1,499 kW
AB111: Standby - General Service 1,000 - 5,000 kW
AB112: Standby Power General Service 1,500 to 4,999 kW
AB113: Standby - Large Use
AB114: Standby Power General Service Large Use
AB115: Standby Distribution Service

Sheet 4. RRR Data
B13: In the green shaded cells, enter the most recent reported RRR billing determinants. Please ensure that billing determinants are non-loss adjusted.
B24: Rate Class | D24: Unit | F24: Non-Loss Adjusted Metered kWh | G24: Non-Loss Adjusted Metered kW | H24: Applicable Loss Factor | J24: Load Factor | L24: Loss Adjusted Billed kWh | M24: Billed kW
B27: =IF('3. Rate Classes'!Q24=1,'3. Rate Classes'!C24, 0) -> Embedded Distributor | D27: =IF(OR(VLOOKUP($B27, '3. Rate Classes'!$C$24:$H$45,6,0)=0, ISERROR(VLOOKUP($B27, '3. Rate Classes'!$C$24:$H$45,6,0))), "", VLOOKUP($B27, '3. Rate Classes'!$C$24:$H$45,6,0)) -> kW | F27: 74192250 | G27: 264787 | H27: 1.0305 | J27: =IF(ISERROR(F27/(G27*30.4*24)), "", IF(D27="kW", F27/(G27*30.4*24), "")) -> 0.3840405275 | L27: =IF(OR(H27=0, OR(ISBLANK(H27), TRIM(H27)="")), F27, F27*H27) -> 76455113.62 | M27: =G27*H27 -> 272863.0035
B28: =IF('3. Rate Classes'!Q25=1,'3. Rate Classes'!C25, 0) -> 0 | D28: =IF(OR(VLOOKUP($B28, '3. Rate Classes'!$C$24:$H$45,6,0)=0, ISERROR(VLOOKUP($B28, '3. Rate Classes'!$C$24:$H$45,6,0))), "", VLOOKUP($B28, '3. Rate Classes'!$C$24:$H$45,6,0)) ->  | L28: =IF(OR(H28=0, OR(ISBLANK(H28), TRIM(H28)="")), F28, F28*H28) -> 0 | M28: =IF(OR(H28=0, OR(ISBLANK(H28), TRIM(H28)="")), G28, G28) -> 0
B29: =IF('3. Rate Classes'!Q26=1,'3. Rate Classes'!C26, 0) -> 0 | D29: =IF(OR(VLOOKUP($B29, '3. Rate Classes'!$C$24:$H$45,6,0)=0, ISERROR(VLOOKUP($B29, '3. Rate Classes'!$C$24:$H$45,6,0))), "", VLOOKUP($B29, '3. Rate Classes'!$C$24:$H$45,6,0)) ->  | L29: 0 | M29: 0
B30: =IF('3. Rate Classes'!Q27=1,'3. Rate Classes'!C27, 0) -> 0 | D30: =IF(OR(VLOOKUP($B30, '3. Rate Classes'!$C$24:$H$45,6,0)=0, ISERROR(VLOOKUP($B30, '3. Rate Classes'!$C$24:$H$45,6,0))), "", VLOOKUP($B30, '3. Rate Classes'!$C$24:$H$45,6,0)) ->  | L30: 0 | M30: 0
B31: =IF('3. Rate Classes'!Q28=1,'3. Rate Classes'!C28, 0) -> 0 | D31: =IF(OR(VLOOKUP($B31, '3. Rate Classes'!$C$24:$H$45,6,0)=0, ISERROR(VLOOKUP($B31, '3. Rate Classes'!$C$24:$H$45,6,0))), "", VLOOKUP($B31, '3. Rate Classes'!$C$24:$H$45,6,0)) ->  | L31: 0 | M31: 0
B32: =IF('3. Rate Classes'!Q29=1,'3. Rate Classes'!C29, 0) -> 0 | D32: =IF(OR(VLOOKUP($B32, '3. Rate Classes'!$C$24:$H$45,6,0)=0, ISERROR(VLOOKUP($B32, '3. Rate Classes'!$C$24:$H$45,6,0))), "", VLOOKUP($B32, '3. Rate Classes'!$C$24:$H$45,6,0)) ->  | L32: 0 | M32: 0
B33: =IF('3. Rate Classes'!Q30=1,'3. Rate Classes'!C30, 0) -> 0 | D33: =IF(OR(VLOOKUP($B33, '3. Rate Classes'!$C$24:$H$45,6,0)=0, ISERROR(VLOOKUP($B33, '3. Rate Classes'!$C$24:$H$45,6,0))), "", VLOOKUP($B33, '3. Rate Classes'!$C$24:$H$45,6,0)) ->  | J33: =IF(ISERROR(F33/(G33*30.4*24)), "", IF(D33="kW", F33/(G33*30.4*24), "")) ->  | L33: 0 | M33: 0
B34: =IF('3. Rate Classes'!Q31=1,'3. Rate Classes'!C31, 0) -> 0 | D34: =IF(OR(VLOOKUP($B34, '3. Rate Classes'!$C$24:$H$45,6,0)=0, ISERROR(VLOOKUP($B34, '3. Rate Classes'!$C$24:$H$45,6,0))), "", VLOOKUP($B34, '3. Rate Classes'!$C$24:$H$45,6,0)) ->  | L34: 0 | M34: 0
B35: =IF('3. Rate Classes'!Q32=1,'3. Rate Classes'!C32, 0) -> 0 | D35: =IF(OR(VLOOKUP($B35, '3. Rate Classes'!$C$24:$H$45,6,0)=0, ISERROR(VLOOKUP($B35, '3. Rate Classes'!$C$24:$H$45,6,0))), "", VLOOKUP($B35, '3. Rate Classes'!$C$24:$H$45,6,0)) ->  | L35: 0 | M35: 0
B36: =IF('3. Rate Classes'!Q33=1,'3. Rate Classes'!C33, 0) -> 0 | D36: =IF(OR(VLOOKUP($B36, '3. Rate Classes'!$C$24:$H$45,6,0)=0, ISERROR(VLOOKUP($B36, '3. Rate Classes'!$C$24:$H$45,6,0))), "", VLOOKUP($B36, '3. Rate Classes'!$C$24:$H$45,6,0)) ->  | L36: 0 | M36: 0
B37: =IF('3. Rate Classes'!Q34=1,'3. Rate Classes'!C34, 0) -> 0 | D37: =IF(OR(VLOOKUP($B37, '3. Rate Classes'!$C$24:$H$45,6,0)=0, ISERROR(VLOOKUP($B37, '3. Rate Classes'!$C$24:$H$45,6,0))), "", VLOOKUP($B37, '3. Rate Classes'!$C$24:$H$45,6,0)) ->  | L37: 0 | M37: 0
B38: =IF('3. Rate Classes'!Q35=1,'3. Rate Classes'!C35, 0) -> 0 | D38: =IF(OR(VLOOKUP($B38, '3. Rate Classes'!$C$24:$H$45,6,0)=0, ISERROR(VLOOKUP($B38, '3. Rate Classes'!$C$24:$H$45,6,0))), "", VLOOKUP($B38, '3. Rate Classes'!$C$24:$H$45,6,0)) ->  | L38: 0 | M38: 0
B39: =IF('3. Rate Classes'!Q36=1,'3. Rate Classes'!C36, 0) -> 0 | D39: =IF(OR(VLOOKUP($B39, '3. Rate Classes'!$C$24:$H$45,6,0)=0, ISERROR(VLOOKUP($B39, '3. Rate Classes'!$C$24:$H$45,6,0))), "", VLOOKUP($B39, '3. Rate Classes'!$C$24:$H$45,6,0)) ->  | L39: 0 | M39: 0
B40: =IF('3. Rate Classes'!Q37=1,'3. Rate Classes'!C37, 0) -> 0 | D40: =IF(OR(VLOOKUP($B40, '3. Rate Classes'!$C$24:$H$45,6,0)=0, ISERROR(VLOOKUP($B40, '3. Rate Classes'!$C$24:$H$45,6,0))), "", VLOOKUP($B40, '3. Rate Classes'!$C$24:$H$45,6,0)) ->  | L40: 0 | M40: 0
B41: =IF('3. Rate Classes'!Q38=1,'3. Rate Classes'!C38, 0) -> 0 | D41: =IF(OR(VLOOKUP($B41, '3. Rate Classes'!$C$24:$H$45,6,0)=0, ISERROR(VLOOKUP($B41, '3. Rate Classes'!$C$24:$H$45,6,0))), "", VLOOKUP($B41, '3. Rate Classes'!$C$24:$H$45,6,0)) ->  | L41: 0 | M41: 0
B42: =IF('3. Rate Classes'!Q39=1,'3. Rate Classes'!C39, 0) -> 0 | D42: =IF(OR(VLOOKUP($B42, '3. Rate Classes'!$C$24:$H$45,6,0)=0, ISERROR(VLOOKUP($B42, '3. Rate Classes'!$C$24:$H$45,6,0))), "", VLOOKUP($B42, '3. Rate Classes'!$C$24:$H$45,6,0)) ->  | L42: 0 | M42: 0
B43: =IF('3. Rate Classes'!Q40=1,'3. Rate Classes'!C40, 0) -> 0 | D43: =IF(OR(VLOOKUP($B43, '3. Rate Classes'!$C$24:$H$45,6,0)=0, ISERROR(VLOOKUP($B43, '3. Rate Classes'!$C$24:$H$45,6,0))), "", VLOOKUP($B43, '3. Rate Classes'!$C$24:$H$45,6,0)) ->  | L43: 0 | M43: 0
B44: =IF('3. Rate Classes'!Q41=1,'3. Rate Classes'!C41, 0) -> 0 | D44: =IF(OR(VLOOKUP($B44, '3. Rate Classes'!$C$24:$H$45,6,0)=0, ISERROR(VLOOKUP($B44, '3. Rate Classes'!$C$24:$H$45,6,0))), "", VLOOKUP($B44, '3. Rate Classes'!$C$24:$H$45,6,0)) ->  | L44: 0 | M44: 0
B45: =IF('3. Rate Classes'!Q42=1,'3. Rate Classes'!C42, 0) -> 0 | D45: =IF(OR(VLOOKUP($B45, '3. Rate Classes'!$C$24:$H$45,6,0)=0, ISERROR(VLOOKUP($B45, '3. Rate Classes'!$C$24:$H$45,6,0))), "", VLOOKUP($B45, '3. Rate Classes'!$C$24:$H$45,6,0)) ->  | L45: 0 | M45: 0
B46: =IF('3. Rate Classes'!Q43=1,'3. Rate Classes'!C43, 0) -> 0 | D46: =IF(OR(VLOOKUP($B46, '3. Rate Classes'!$C$24:$H$45,6,0)=0, ISERROR(VLOOKUP($B46, '3. Rate Classes'!$C$24:$H$45,6,0))), "", VLOOKUP($B46, '3. Rate Classes'!$C$24:$H$45,6,0)) ->  | L46: 0 | M46: 0
B47: =IF('3. Rate Classes'!Q44=1,'3. Rate Classes'!C44, 0) -> 0 | D47: =IF(OR(VLOOKUP($B47, '3. Rate Classes'!$C$24:$H$45,6,0)=0, ISERROR(VLOOKUP($B47, '3. Rate Classes'!$C$24:$H$45,6,0))), "", VLOOKUP($B47, '3. Rate Classes'!$C$24:$H$45,6,0)) ->  | L47: 0 | M47: 0
B48: =IF('3. Rate Classes'!Q45=1,'3. Rate Classes'!C45, 0) -> 0 | D48: =IF(OR(VLOOKUP($B48, '3. Rate Classes'!$C$24:$H$45,6,0)=0, ISERROR(VLOOKUP($B48, '3. Rate Classes'!$C$24:$H$45,6,0))), "", VLOOKUP($B48, '3. Rate Classes'!$C$24:$H$45,6,0)) ->  | L48: 0 | M48: 0

Sheet 5. UTRs and Sub-Transmission
B18: Uniform Transmission Rates | C18: Unit | E18: Effective January 1, 2011 | G18: Effective January 1, 2012 | I18: Effective January 1, 2013
B20: Rate Description | E20: Rate | G20: Rate | I20: Rate
B22: Network Service Rate | C22: kW | E22: 3.22 | G22: 3.57 | I22: 3.57
B24: Line Connection Service Rate | C24: kW | E24: 0.79 | G24: 0.8 | I24: 0.8
B26: Transformation Connection Service Rate | C26: kW | E26: 1.77 | G26: 1.86 | I26: 1.86
B29: Hydro One Sub-Transmission Rates | C29: Unit | E29: Effective January 1, 2011 | G29: Effective January 1, 2012 | I29: Effective January 1, 2013
B33: Rate Description | E33: Rate | G33: Rate | I33: Rate
B35: Network Service Rate | C35: kW | E35: 2.65 | G35: 2.65 | I35: 2.65
B37: Line Connection Service Rate | C37: kW | E37: 0.64 | G37: 0.64 | I37: 0.64
B39: Transformation Connection Service Rate | C39: kW | E39: 1.5 | G39: 1.5 | I39: 1.5
B41: Both Line and Transformation Connection Service Rate | C41: kW | E41: =E39+E37 -> 2.14 | G41: =G39+G37 -> 2.14 | I41: =I39+I37 -> 2.14
B45: Hydro One Sub-Transmission Rate Rider 6A | C45: Unit | E45: Effective January 1, 2011 | G45: Effective January 1, 2012 | I45: Effective January 1, 2013
B47: Rate Description | E47: Rate | G47: Rate | I47: Rate
B49: RSVA Transmission network – 4714 – which affects 1584 | C49: kW | E49: 0.047 | G49: 0 | I49: 0
B51: RSVA Transmission connection – 4716 – which affects 1586 | C51: kW | E51: -0.025 | G51: 0 | I51: 0
B53: RSVA LV – 4750 – which affects 1550 | C53: kW | E53: 0.058 | G53: 0 | I53: 0
B55: RARA 1 – 2252 – which affects 1590 | C55: kW | E55: -0.075 | G55: 0 | I55: 0
B57: Hydro One Sub-Transmission Rate Rider 6A | C57: kW | E57: =SUM(E49:E55) -> 0.005 | G57: =SUM(G49:G55) -> 0 | I57: =SUM(I49:I55) -> 0

Sheet 6. Historical Wholesale
B21: IESO | D21: Network | H21: Line Connection | L21: Transformation Connection | P21: Total Line
B22: Month | D22: Units Billed | E22: Rate | F22: Amount | H22: Units Billed | I22: Rate | J22: Amount | L22: Units Billed | M22: Rate | N22: Amount | P22: Amount
B24: January | D24: 1947.13 | E24: =IF(D24<>0,F24/D24,0) -> 3.220123977 | F24: 6270 | H24: 2021.23 | I24: =IF(H24<>0,J24/H24,0) -> 0.790112951 | J24: =ROUND(H24*0.79,0) -> 1597 | L24: 2021.23 | M24: =IF(L24<>0,N24/L24,0) -> 1.770209229 | N24: =ROUND(L24*1.77,0) -> 3578 | P24: =J24+N24 -> 5175
B25: February | D25: 519.47 | E25: 3.220590217 | F25: 1673 | H25: 556.43 | I25: 0.7907553511 | J25: =ROUND(H25*0.79,0) -> 440 | L25: 556.43 | M25: 1.770213684 | N25: =ROUND(L25*1.77,0) -> 985 | P25: 1425
B26: March | D26: 530.23 | E26: 3.219357637 | F26: 1707 | H26: 530.23 | I26: 0.7902231107 | J26: 419 | L26: 530.23 | M26: 1.770929597 | N26: 939 | P26: 1358
B27: April | D27: 1672.21 | E27: 3.220289318 | F27: 5385 | H27: 9543.07 | I27: 0.7899973489 | J27: 7539 | L27: 9543.07 | M27: 1.76997549 | N27: 16891 | P27: 24430
B28: May | D28: 420.94 | E28: 3.218986079 | F28: 1355 | H28: 9110.27 | I28: 0.7899875635 | J28: 7197 | L28: 9110.27 | M28: 1.769980473 | N28: 16125 | P28: 23322
B29: June | D29: 388.83 | E29: 3.219916159 | F29: 1252 | H29: 423.39 | I29: 0.7888707811 | J29: 334 | L29: 423.39 | M29: 1.769054536 | N29: 749 | P29: 1083
B30: July | D30: 415.11 | E30: 3.220833032 | F30: 1337 | H30: 10058.5 | I30: 0.789978625 | J30: 7946 | L30: 10058.5 | M30: 1.770045235 | N30: 17804 | P30: 25750
B31: August | D31: 8370.61 | E31: 3.219956491 | F31: 26953 | H31: 9588.91 | I31: 0.7899750858 | J31: 7575 | L31: 9588.91 | M31: 1.769961341 | N31: 16972 | P31: 24547
B32: September | D32: 8204.19 | E32: 3.219940055 | F32: 26417 | H32: 9747.03 | I32: 0.7899842311 | J32: 7700 | L32: 9747.03 | M32: 1.769975059 | N32: 17252 | P32: 24952
B33: October | D33: 420.98 | E33: 3.221055632 | F33: 1356 | H33: 9360.37 | I33: 0.7900328726 | J33: 7395 | L33: 9360.37 | M33: 1.770015502 | N33: 16568 | P33: 23963
B34: November | D34: 483.44 | E34: 3.220668542 | F34: 1557 | H34: 9485.9 | I34: 0.7900146533 | J34: 7494 | L34: 9485.9 | M34: 1.769995467 | N34: 16790 | P34: 24284
B35: December | D35: 450.56 | E35: 3.22043679 | F35: 1451 | H35: 450.56 | I35: 0.7901278409 | J35: 356 | L35: 450.56 | M35: 1.768909801 | N35: 797 | P35: 1153
B37: Total | D37: =SUM(D24:D35) -> 23823.7 | E37: =IF(D37<>0,F37/D37,0) -> 3.220028795 | F37: =SUM(F24:F35) -> 76713 | H37: =SUM(H24:H35) -> 70875.89 | I37: =IF(H37<>0,J37/H37,0) -> 0.7900006617 | J37: =SUM(J24:J35) -> 55992 | L37: =SUM(L24:L35) -> 70875.89 | M37: =IF(L37<>0,N37/L37,0) -> 1.76999541 | N37: =SUM(N24:N35) -> 125450 | P37: =SUM(P24:P35) -> 181442
B39: Hydro One | D39: Network | H39: Line Connection | L39: Transformation Connection | P39: Total Line
B41: Month | D41: Units Billed | E41: Rate | F41: Amount | H41: Units Billed | I41: Rate | J41: Amount | L41: Units Billed | M41: Rate | N41: Amount | P41: Amount
B43: January | D43: 16784 | E43: =IF(D43<>0,F43/D43,0) -> 2.650023832 | F43: 44478 | H43: 16910.37 | I43: =IF(H43<>0,J43/H43,0) -> 0.6400214779 | J43: =ROUND(H43*0.64,0) -> 10823 | L43: 16910.37 | M43: =IF(L43<>0,N43/L43,0) -> 1.500026315 | N43: =ROUND(L43*1.5,0) -> 25366 | P43: =J43+N43 -> 36189
B44: February | D44: 16796.71 | E44: 2.649983241 | F44: 44511 | H44: 16803.61 | I44: 0.6399815278 | J44: =ROUND(H44*0.64,0) -> 10754 | L44: 16803.61 | M44: 1.499975303 | N44: =ROUND(L44*1.5,0) -> 25205 | P44: 35959
B45: March | D45: 16039.86 | E45: 2.65002313 | F45: 42506 | H45: 16089.43 | I45: 0.6399853817 | J45: 10297 | L45: 16089.43 | M45: 1.499990988 | N45: 24134 | P45: 34431
B46: April | D46: 16316.66 | E46: 2.649990868 | F46: 43239 | H46: 16961.85 | I46: 0.6400245256 | J46: 10856 | L46: 16961.85 | M46: 1.500013265 | N46: 25443 | P46: 36299
B47: May | D47: 15599.86 | E47: 2.650023782 | F47: 41340 | H47: 15611.93 | I47: 0.6400233667 | J47: 9992 | L47: 15611.93 | M47: 1.500006726 | N47: 23418 | P47: 33410
B48: June | D48: 15787.57 | E48: 2.649996168 | F48: 41837 | H48: 15827.01 | I48: 0.6399819044 | J48: 10129 | L48: 15827.01 | M48: 1.500030644 | N48: 23741 | P48: 33870
B49: July | D49: 16629.32 | E49: 2.650018161 | F49: 44068 | H49: 16646.22 | I49: 0.6400251829 | J49: 10654 | L49: 16646.22 | M49: 1.499980176 | N49: 24969 | P49: 35623
B50: August | D50: 15581.78 | E50: 2.650018162 | F50: 41292 | H50: 16045.86 | I50: 0.6399781626 | J50: 10269 | L50: 16045.86 | M50: 1.500013087 | N50: 24069 | P50: 34338
B51: September | D51: 15831.41 | E51: 2.649985061 | F51: 41953 | H51: 15998.73 | I51: 0.6399882991 | J51: 10239 | L51: 15998.73 | M51: 1.499994062 | N51: 23998 | P51: 34237
B52: October | D52: 15326.96 | E52: 2.649971031 | F52: 40616 | H52: 15428.56 | I52: 0.6399819555 | J52: 9874 | L52: 15428.56 | M52: 1.50001037 | N52: 23143 | P52: 33017
B53: November | D53: 15768.2 | E53: 2.650017123 | F53: 41786 | H53: 15796.37 | I53: 0.6400204604 | J53: 10110 | L53: 15796.37 | M53: 1.500028171 | N53: 23695 | P53: 33805
B54: December | D54: 16331.96 | E54: 2.650018736 | F54: 43280 | H54: 16411.68 | I54: 0.639971045 | J54: 10503 | L54: 16411.68 | M54: 1.500029247 | N54: 24618 | P54: 35121
B56: Total | D56: =SUM(D43:D54) -> 192794.29 | E56: =IF(D56<>0,F56/D56,0) -> 2.650005869 | F56: =SUM(F43:F54) -> 510906 | H56: =SUM(H43:H54) -> 194531.62 | I56: =IF(H56<>0,J56/H56,0) -> 0.6399987827 | J56: =SUM(J43:J54) -> 124500 | L56: =SUM(L43:L54) -> 194531.62 | M56: =IF(L56<>0,N56/L56,0) -> 1.500008071 | N56: =SUM(N43:N54) -> 291799 | P56: =SUM(P43:P54) -> 416299
B58: Total | D58: Network | H58: Line Connection | L58: Transformation Connection | P58: Total Line
B60: Month | D60: Units Billed | E60: Rate | F60: Amount | H60: Units Billed | I60: Rate | J60: Amount | L60: Units Billed | M60: Rate | N60: Amount | P60: Amount
B62: January | D62: =D24+D43 -> 18731.13 | E62: =IF(D62<>0,F62/D62,0) -> 2.709286626 | F62: =F24+F43 -> 50748 | H62: =H24+H43 -> 18931.6 | I62: =IF(H62<>0,J62/H62,0) -> 0.656045976 | J62: =J24+J43 -> 12420 | L62: =L24+L43 -> 18931.6 | M62: =IF(L62<>0,N62/L62,0) -> 1.528872362 | N62: =N24+N43 -> 28944 | P62: =J62+N62 -> 41364
B63: February | D63: 17316.18 | E63: 2.667100943 | F63: 46184 | H63: 17360.04 | I63: 0.6448141825 | J63: 11194 | L63: 17360.04 | M63: 1.508637077 | N63: 26190 | P63: 37384
B64: March | D64: 16570.09 | E64: 2.668241392 | F64: 44213 | H64: 16619.66 | I64: 0.6447785334 | J64: 10716 | L64: 16619.66 | M64: 1.508634954 | N64: 25073 | P64: 35789
B65: April | D65: 17988.87 | E65: 2.703004691 | F65: 48624 | H65: 26504.92 | I65: 0.694022091 | J65: 18395 | L65: 26504.92 | M65: 1.597212895 | N65: 42334 | P65: 60729
B66: May | D66: 16020.8 | E66: 2.664973035 | F66: 42695 | H66: 24722.2 | I66: 0.6952860182 | J66: 17189 | L66: 24722.2 | M66: 1.599493573 | N66: 39543 | P66: 56732
B67: June | D67: 16176.4 | E67: 2.66369526 | F67: 43089 | H67: 16250.4 | I67: 0.6438610742 | J67: 10463 | L67: 16250.4 | M67: 1.507039827 | N67: 24490 | P67: 34953
B68: July | D68: 17044.43 | E68: 2.663920119 | F68: 45405 | H68: 26704.72 | I68: 0.6965060858 | J68: 18600 | L68: 26704.72 | M68: 1.601701871 | N68: 42773 | P68: 61373
B69: August | D69: 23952.39 | E69: 2.849193755 | F69: 68245 | H69: 25634.77 | I69: 0.6960858241 | J69: 17844 | L69: 25634.77 | M69: 1.600989593 | N69: 41041 | P69: 58885
B70: September | D70: 24035.6 | E70: 2.844530613 | F70: 68370 | H70: 25745.76 | I70: 0.6967749253 | J70: 17939 | L70: 25745.76 | M70: 1.602205567 | N70: 41250 | P70: 59189
B71: October | D71: 15747.94 | E71: 2.665237485 | F71: 41972 | H71: 24788.93 | I71: 0.6966416057 | J71: 17269 | L71: 24788.93 | M71: 1.601965071 | N71: 39711 | P71: 56980
B72: November | D72: 16251.64 | E72: 2.666992377 | F72: 43343 | H72: 25282.27 | I72: 0.6962982359 | J72: 17604 | L72: 25282.27 | M72: 1.601319818 | N72: 40485 | P72: 58089
B73: December | D73: 16782.52 | E73: 2.665332739 | F73: 44731 | H73: 16862.24 | I73: 0.643983243 | J73: 10859 | L73: 16862.24 | M73: 1.507213751 | N73: 25415 | P73: 36274
B75: Total | D75: =SUM(D62:D73) -> 216617.99 | E75: =IF(D75<>0,F75/D75,0) -> 2.712697131 | F75: =SUM(F62:F73) -> 587619 | H75: =SUM(H62:H73) -> 265407.51 | I75: =IF(H75<>0,J75/H75,0) -> 0.6800561145 | J75: =SUM(J62:J73) -> 180492 | L75: =SUM(L62:L73) -> 265407.51 | M75: =IF(L75<>0,N75/L75,0) -> 1.572106984 | N75: =SUM(N62:N73) -> 417249 | P75: =SUM(P62:P73) -> 597741

Sheet 7. Current Wholesale
B13: The purpose of this sheet is to calculate the expected billing when current 2012 Uniform Transmission Rates are applied against historical 2011 transmission units.
B20: IESO | D20: Network | H20: Line Connection | L20: Transformation Connection | P20: Total Line
B22: Month | D22: Units Billed | E22: Rate | F22: Amount | H22: Units Billed | I22: Rate | J22: Amount | L22: Units Billed | M22: Rate | N22: Amount | P22: Amount
B24: January | D24: ='6. Historical Wholesale'!D24 -> 1947.13 | E24: ='5. UTRs and Sub-Transmission'!G22 -> 3.57 | F24: =D24*E24 -> 6951.2541 | H24: ='6. Historical Wholesale'!H24 -> 2021.23 | I24: ='5. UTRs and Sub-Transmission'!G24 -> 0.8 | J24: =H24*I24 -> 1616.984 | L24: ='6. Historical Wholesale'!L24 -> 2021.23 | M24: ='5. UTRs and Sub-Transmission'!G26 -> 1.86 | N24: =L24*M24 -> 3759.4878 | P24: =J24+N24 -> 5376.4718
B25: February | D25: ='6. Historical Wholesale'!D25 -> 519.47 | E25: =E24 -> 3.57 | F25: =D25*E25 -> 1854.5079 | H25: ='6. Historical Wholesale'!H25 -> 556.43 | I25: =I24 -> 0.8 | J25: =H25*I25 -> 445.144 | L25: ='6. Historical Wholesale'!L25 -> 556.43 | M25: =M24 -> 1.86 | N25: =L25*M25 -> 1034.9598 | P25: 1480.1038
B26: March | D26: ='6. Historical Wholesale'!D26 -> 530.23 | E26: =E25 -> 3.57 | F26: 1892.9211 | H26: ='6. Historical Wholesale'!H26 -> 530.23 | I26: =I25 -> 0.8 | J26: 424.184 | L26: ='6. Historical Wholesale'!L26 -> 530.23 | M26: =M25 -> 1.86 | N26: 986.2278 | P26: 1410.4118
B27: April | D27: ='6. Historical Wholesale'!D27 -> 1672.21 | E27: 3.57 | F27: 5969.7897 | H27: ='6. Historical Wholesale'!H27 -> 9543.07 | I27: 0.8 | J27: 7634.456 | L27: ='6. Historical Wholesale'!L27 -> 9543.07 | M27: 1.86 | N27: 17750.1102 | P27: 25384.5662
B28: May | D28: ='6. Historical Wholesale'!D28 -> 420.94 | E28: 3.57 | F28: 1502.7558 | H28: ='6. Historical Wholesale'!H28 -> 9110.27 | I28: 0.8 | J28: 7288.216 | L28: ='6. Historical Wholesale'!L28 -> 9110.27 | M28: 1.86 | N28: 16945.1022 | P28: 24233.3182
B29: June | D29: ='6. Historical Wholesale'!D29 -> 388.83 | E29: 3.57 | F29: 1388.1231 | H29: ='6. Historical Wholesale'!H29 -> 423.39 | I29: 0.8 | J29: 338.712 | L29: ='6. Historical Wholesale'!L29 -> 423.39 | M29: 1.86 | N29: 787.5054 | P29: 1126.2174
B30: July | D30: ='6. Historical Wholesale'!D30 -> 415.11 | E30: 3.57 | F30: 1481.9427 | H30: ='6. Historical Wholesale'!H30 -> 10058.5 | I30: 0.8 | J30: 8046.8 | L30: ='6. Historical Wholesale'!L30 -> 10058.5 | M30: 1.86 | N30: 18708.81 | P30: 26755.61
B31: August | D31: ='6. Historical Wholesale'!D31 -> 8370.61 | E31: 3.57 | F31: 29883.0777 | H31: ='6. Historical Wholesale'!H31 -> 9588.91 | I31: 0.8 | J31: 7671.128 | L31: ='6. Historical Wholesale'!L31 -> 9588.91 | M31: 1.86 | N31: 17835.3726 | P31: 25506.5006
B32: September | D32: ='6. Historical Wholesale'!D32 -> 8204.19 | E32: 3.57 | F32: 29288.9583 | H32: ='6. Historical Wholesale'!H32 -> 9747.03 | I32: 0.8 | J32: 7797.624 | L32: ='6. Historical Wholesale'!L32 -> 9747.03 | M32: 1.86 | N32: 18129.4758 | P32: 25927.0998
B33: October | D33: ='6. Historical Wholesale'!D33 -> 420.98 | E33: 3.57 | F33: 1502.8986 | H33: ='6. Historical Wholesale'!H33 -> 9360.37 | I33: 0.8 | J33: 7488.296 | L33: ='6. Historical Wholesale'!L33 -> 9360.37 | M33: 1.86 | N33: 17410.2882 | P33: 24898.5842
B34: November | D34: ='6. Historical Wholesale'!D34 -> 483.44 | E34: 3.57 | F34: 1725.8808 | H34: ='6. Historical Wholesale'!H34 -> 9485.9 | I34: 0.8 | J34: 7588.72 | L34: ='6. Historical Wholesale'!L34 -> 9485.9 | M34: 1.86 | N34: 17643.774 | P34: 25232.494
B35: December | D35: ='6. Historical Wholesale'!D35 -> 450.56 | E35: 3.57 | F35: 1608.4992 | H35: ='6. Historical Wholesale'!H35 -> 450.56 | I35: 0.8 | J35: 360.448 | L35: ='6. Historical Wholesale'!L35 -> 450.56 | M35: 1.86 | N35: 838.0416 | P35: 1198.4896
B37: Total | D37: =SUM(D24:D35) -> 23823.7 | E37: =IF(D37<>0,F37/D37,0) -> 3.57 | F37: =SUM(F24:F35) -> 85050.609 | H37: =SUM(H24:H35) -> 70875.89 | I37: =IF(H37<>0,J37/H37,0) -> 0.8 | J37: =SUM(J24:J35) -> 56700.712 | L37: =SUM(L24:L35) -> 70875.89 | M37: =IF(L37<>0,N37/L37,0) -> 1.86 | N37: =SUM(N24:N35) -> 131829.1554 | P37: =SUM(P24:P35) -> 188529.8674
B39: Hydro One | D39: Network | H39: Line Connection | L39: Transformation Connection | P39: Total Line
B41: Month | D41: Units Billed | E41: Rate | F41: Amount | H41: Units Billed | I41: Rate | J41: Amount | L41: Units Billed | M41: Rate | N41: Amount | P41: Amount
B43: January | D43: ='6. Historical Wholesale'!D43 -> 16784 | E43: ='5. UTRs and Sub-Transmission'!G35+'5. UTRs and Sub-Transmission'!G49 -> 2.65 | F43: =D43*E43 -> 44477.6 | H43: ='6. Historical Wholesale'!H43 -> 16910.37 | I43: ='5. UTRs and Sub-Transmission'!G37+'5. UTRs and Sub-Transmission'!G51 -> 0.64 | J43: =H43*I43 -> 10822.6368 | L43: ='6. Historical Wholesale'!L43 -> 16910.37 | M43: ='5. UTRs and Sub-Transmission'!G39 -> 1.5 | N43: =L43*M43 -> 25365.555 | P43: =J43+N43 -> 36188.1918
B44: February | D44: ='6. Historical Wholesale'!D44 -> 16796.71 | E44: =E43 -> 2.65 | F44: =D44*E44 -> 44511.2815 | H44: ='6. Historical Wholesale'!H44 -> 16803.61 | I44: =I43 -> 0.64 | J44: =H44*I44 -> 10754.3104 | L44: ='6. Historical Wholesale'!L44 -> 16803.61 | M44: =M43 -> 1.5 | N44: =L44*M44 -> 25205.415 | P44: 35959.7254
B45: March | D45: ='6. Historical Wholesale'!D45 -> 16039.86 | E45: =E44 -> 2.65 | F45: 42505.629 | H45: ='6. Historical Wholesale'!H45 -> 16089.43 | I45: =I44 -> 0.64 | J45: 10297.2352 | L45: ='6. Historical Wholesale'!L45 -> 16089.43 | M45: =M44 -> 1.5 | N45: 24134.145 | P45: 34431.3802
B46: April | D46: ='6. Historical Wholesale'!D46 -> 16316.66 | E46: 2.65 | F46: 43239.149 | H46: ='6. Historical Wholesale'!H46 -> 16961.85 | I46: 0.64 | J46: 10855.584 | L46: ='6. Historical Wholesale'!L46 -> 16961.85 | M46: =M45 -> 1.5 | N46: 25442.775 | P46: 36298.359
B47: May | D47: ='6. Historical Wholesale'!D47 -> 15599.86 | E47: 2.65 | F47: 41339.629 | H47: ='6. Historical Wholesale'!H47 -> 15611.93 | I47: 0.64 | J47: 9991.6352 | L47: ='6. Historical Wholesale'!L47 -> 15611.93 | M47: 1.5 | N47: 23417.895 | P47: 33409.5302
B48: June | D48: ='6. Historical Wholesale'!D48 -> 15787.57 | E48: 2.65 | F48: 41837.0605 | H48: ='6. Historical Wholesale'!H48 -> 15827.01 | I48: 0.64 | J48: 10129.2864 | L48: ='6. Historical Wholesale'!L48 -> 15827.01 | M48: 1.5 | N48: 23740.515 | P48: 33869.8014
B49: July | D49: ='6. Historical Wholesale'!D49 -> 16629.32 | E49: 2.65 | F49: 44067.698 | H49: ='6. Historical Wholesale'!H49 -> 16646.22 | I49: 0.64 | J49: 10653.5808 | L49: ='6. Historical Wholesale'!L49 -> 16646.22 | M49: 1.5 | N49: 24969.33 | P49: 35622.9108
B50: August | D50: ='6. Historical Wholesale'!D50 -> 15581.78 | E50: 2.65 | F50: 41291.717 | H50: ='6. Historical Wholesale'!H50 -> 16045.86 | I50: 0.64 | J50: 10269.3504 | L50: ='6. Historical Wholesale'!L50 -> 16045.86 | M50: 1.5 | N50: 24068.79 | P50: 34338.1404
B51: September | D51: ='6. Historical Wholesale'!D51 -> 15831.41 | E51: 2.65 | F51: 41953.2365 | H51: ='6. Historical Wholesale'!H51 -> 15998.73 | I51: 0.64 | J51: 10239.1872 | L51: ='6. Historical Wholesale'!L51 -> 15998.73 | M51: 1.5 | N51: 23998.095 | P51: 34237.2822
B52: October | D52: ='6. Historical Wholesale'!D52 -> 15326.96 | E52: 2.65 | F52: 40616.444 | H52: ='6. Historical Wholesale'!H52 -> 15428.56 | I52: 0.64 | J52: 9874.2784 | L52: ='6. Historical Wholesale'!L52 -> 15428.56 | M52: 1.5 | N52: 23142.84 | P52: 33017.1184
B53: November | D53: ='6. Historical Wholesale'!D53 -> 15768.2 | E53: 2.65 | F53: 41785.73 | H53: ='6. Historical Wholesale'!H53 -> 15796.37 | I53: 0.64 | J53: 10109.6768 | L53: ='6. Historical Wholesale'!L53 -> 15796.37 | M53: 1.5 | N53: 23694.555 | P53: 33804.2318
B54: December | D54: ='6. Historical Wholesale'!D54 -> 16331.96 | E54: 2.65 | F54: 43279.694 | H54: ='6. Historical Wholesale'!H54 -> 16411.68 | I54: 0.64 | J54: 10503.4752 | L54: ='6. Historical Wholesale'!L54 -> 16411.68 | M54: 1.5 | N54: 24617.52 | P54: 35120.9952
B56: Total | D56: =SUM(D43:D54) -> 192794.29 | E56: =IF(D56<>0,F56/D56,0) -> 2.65 | F56: =SUM(F43:F54) -> 510904.8685 | H56: =SUM(H43:H54) -> 194531.62 | I56: =IF(H56<>0,J56/H56,0) -> 0.64 | J56: =SUM(J43:J54) -> 124500.2368 | L56: =SUM(L43:L54) -> 194531.62 | M56: =IF(L56<>0,N56/L56,0) -> 1.5 | N56: =SUM(N43:N54) -> 291797.43 | P56: =SUM(P43:P54) -> 416297.6668
B58: Total | D58: Network | H58: Line Connection | L58: Transformation Connection | P58: Total Line
B60: Month | D60: Units Billed | E60: Rate | F60: Amount | H60: Units Billed | I60: Rate | J60: Amount | L60: Units Billed | M60: Rate | N60: Amount | P60: Amount
B62: January | D62: =D24+D43 -> 18731.13 | E62: =IF(D62<>0,F62/D62,0) -> 2.745635426 | F62: =F24+F43 -> 51428.8541 | H62: =H24+H43 -> 18931.6 | I62: =IF(H62<>0,J62/H62,0) -> 0.6570823808 | J62: =J24+J43 -> 12439.6208 | L62: =L24+L43 -> 18931.6 | M62: =IF(L62<>0,N62/L62,0) -> 1.538435357 | N62: =N24+N43 -> 29125.0428 | P62: =J62+N62 -> 41564.6636
B63: February | D63: 17316.18 | E63: 2.677599182 | F63: 46365.7894 | H63: 17360.04 | I63: 0.6451283753 | J63: 11199.4544 | L63: 17360.04 | M63: 1.511538844 | N63: 26240.3748 | P63: 37439.8292
B64: March | D64: 16570.09 | E64: 2.679439285 | F64: 44398.5501 | H64: 16619.66 | I64: 0.645104605 | J64: 10721.4192 | L64: 16619.66 | M64: 1.511485361 | N64: 25120.3728 | P64: 35841.792
B65: April | D65: 17988.87 | E65: 2.735521392 | F65: 49208.9387 | H65: 26504.92 | I65: 0.6976078404 | J65: 18490.04 | L65: 26504.92 | M65: 1.629617641 | N65: 43192.8852 | P65: 61682.9252
B66: May | D66: 16020.8 | E66: 2.674172626 | F66: 42842.3848 | H66: 24722.2 | I66: 0.6989609015 | J66: 17279.8512 | L66: 24722.2 | M66: 1.632662028 | N66: 40362.9972 | P66: 57642.8484
B67: June | D67: 16176.4 | E67: 2.672113919 | F67: 43225.1836 | H67: 16250.4 | I67: 0.6441686605 | J67: 10467.9984 | L67: 16250.4 | M67: 1.509379486 | N67: 24528.0204 | P67: 34996.0188
B68: July | D68: 17044.43 | E68: 2.672406217 | F68: 45549.6407 | H68: 26704.72 | I68: 0.7002650018 | J68: 18700.3808 | L68: 26704.72 | M68: 1.635596254 | N68: 43678.14 | P68: 62378.5208
B69: August | D69: 23952.39 | E69: 2.971511181 | F69: 71174.7947 | H69: 25634.77 | I69: 0.6998493999 | J69: 17940.4784 | L69: 25634.77 | M69: 1.63466115 | N69: 41904.1626 | P69: 59844.641
B70: September | D70: 24035.6 | E70: 2.964028142 | F70: 71242.1948 | H70: 25745.76 | I70: 0.700574044 | J70: 18036.8112 | L70: 25745.76 | M70: 1.636291599 | N70: 42127.5708 | P70: 60164.382
B71: October | D71: 15747.94 | E71: 2.674593794 | F71: 42119.3426 | H71: 24788.93 | I71: 0.700416452 | J71: 17362.5744 | L71: 24788.93 | M71: 1.635937017 | N71: 40553.1282 | P71: 57915.7026
B72: November | D72: 16251.64 | E72: 2.67736738 | F72: 43511.6108 | H72: 25282.27 | I72: 0.7000319512 | J72: 17698.3968 | L72: 25282.27 | M72: 1.63507189 | N72: 41338.329 | P72: 59036.7258
B73: December | D73: 16782.52 | E73: 2.674699223 | F73: 44888.1932 | H73: 16862.24 | I73: 0.644275209 | J73: 10863.9232 | L73: 16862.24 | M73: 1.50961922 | N73: 25455.5616 | P73: 36319.4848
B75: Total | D75: =SUM(D62:D73) -> 216617.99 | E75: =IF(D75<>0,F75/D75,0) -> 2.751181827 | F75: =SUM(F62:F73) -> 595955.4775 | H75: =SUM(H62:H73) -> 265407.51 | I75: =IF(H75<>0,J75/H75,0) -> 0.6827272853 | J75: =SUM(J62:J73) -> 181200.9488 | L75: =SUM(L62:L73) -> 265407.51 | M75: =IF(L75<>0,N75/L75,0) -> 1.596136392 | N75: =SUM(N62:N73) -> 423626.5854 | P75: =SUM(P62:P73) -> 604827.5342

Sheet 8. Forecast Wholesale
B13: The purpose of this sheet is to calculate the expected billing when forecasted 2013 Uniform Transmission Rates are applied against historical 2011 transmission units.
B20: IESO | D20: Network | H20: Line Connection | L20: Transformation Connection | P20: Total Line
B22: Month | D22: Units Billed | E22: Rate | F22: Amount | H22: Units Billed | I22: Rate | J22: Amount | L22: Units Billed | M22: Rate | N22: Amount | P22: Amount
B24: January | D24: ='6. Historical Wholesale'!D24 -> 1947.13 | E24: ='5. UTRs and Sub-Transmission'!I22 -> 3.57 | F24: =D24*E24 -> 6951.2541 | H24: ='6. Historical Wholesale'!H24 -> 2021.23 | I24: ='5. UTRs and Sub-Transmission'!I24 -> 0.8 | J24: =H24*I24 -> 1616.984 | L24: ='6. Historical Wholesale'!L24 -> 2021.23 | M24: ='5. UTRs and Sub-Transmission'!I26 -> 1.86 | N24: =L24*M24 -> 3759.4878 | P24: =J24+N24 -> 5376.4718
B25: February | D25: ='6. Historical Wholesale'!D25 -> 519.47 | E25: =E24 -> 3.57 | F25: 1854.5079 | H25: ='6. Historical Wholesale'!H25 -> 556.43 | I25: =I24 -> 0.8 | J25: 445.144 | L25: ='6. Historical Wholesale'!L25 -> 556.43 | M25: =M24 -> 1.86 | N25: 1034.9598 | P25: 1480.1038
B26: March | D26: ='6. Historical Wholesale'!D26 -> 530.23 | E26: 3.57 | F26: 1892.9211 | H26: ='6. Historical Wholesale'!H26 -> 530.23 | I26: 0.8 | J26: 424.184 | L26: ='6. Historical Wholesale'!L26 -> 530.23 | M26: 1.86 | N26: 986.2278 | P26: 1410.4118
B27: April | D27: ='6. Historical Wholesale'!D27 -> 1672.21 | E27: 3.57 | F27: 5969.7897 | H27: ='6. Historical Wholesale'!H27 -> 9543.07 | I27: 0.8 | J27: 7634.456 | L27: ='6. Historical Wholesale'!L27 -> 9543.07 | M27: 1.86 | N27: 17750.1102 | P27: 25384.5662
B28: May | D28: ='6. Historical Wholesale'!D28 -> 420.94 | E28: 3.57 | F28: 1502.7558 | H28: ='6. Historical Wholesale'!H28 -> 9110.27 | I28: 0.8 | J28: 7288.216 | L28: ='6. Historical Wholesale'!L28 -> 9110.27 | M28: 1.86 | N28: 16945.1022 | P28: 24233.3182
B29: June | D29: ='6. Historical Wholesale'!D29 -> 388.83 | E29: 3.57 | F29: 1388.1231 | H29: ='6. Historical Wholesale'!H29 -> 423.39 | I29: 0.8 | J29: 338.712 | L29: ='6. Historical Wholesale'!L29 -> 423.39 | M29: 1.86 | N29: 787.5054 | P29: 1126.2174
B30: July | D30: ='6. Historical Wholesale'!D30 -> 415.11 | E30: 3.57 | F30: 1481.9427 | H30: ='6. Historical Wholesale'!H30 -> 10058.5 | I30: 0.8 | J30: 8046.8 | L30: ='6. Historical Wholesale'!L30 -> 10058.5 | M30: 1.86 | N30: 18708.81 | P30: 26755.61
B31: August | D31: ='6. Historical Wholesale'!D31 -> 8370.61 | E31: 3.57 | F31: 29883.0777 | H31: ='6. Historical Wholesale'!H31 -> 9588.91 | I31: 0.8 | J31: 7671.128 | L31: ='6. Historical Wholesale'!L31 -> 9588.91 | M31: 1.86 | N31: 17835.3726 | P31: 25506.5006
B32: September | D32: ='6. Historical Wholesale'!D32 -> 8204.19 | E32: 3.57 | F32: 29288.9583 | H32: ='6. Historical Wholesale'!H32 -> 9747.03 | I32: 0.8 | J32: 7797.624 | L32: ='6. Historical Wholesale'!L32 -> 9747.03 | M32: 1.86 | N32: 18129.4758 | P32: 25927.0998
B33: October | D33: ='6. Historical Wholesale'!D33 -> 420.98 | E33: 3.57 | F33: 1502.8986 | H33: ='6. Historical Wholesale'!H33 -> 9360.37 | I33: 0.8 | J33: 7488.296 | L33: ='6. Historical Wholesale'!L33 -> 9360.37 | M33: 1.86 | N33: 17410.2882 | P33: 24898.5842
B34: November | D34: ='6. Historical Wholesale'!D34 -> 483.44 | E34: 3.57 | F34: 1725.8808 | H34: ='6. Historical Wholesale'!H34 -> 9485.9 | I34: 0.8 | J34: 7588.72 | L34: ='6. Historical Wholesale'!L34 -> 9485.9 | M34: 1.86 | N34: 17643.774 | P34: 25232.494
B35: December | D35: ='6. Historical Wholesale'!D35 -> 450.56 | E35: 3.57 | F35: 1608.4992 | H35: ='6. Historical Wholesale'!H35 -> 450.56 | I35: 0.8 | J35: 360.448 | L35: ='6. Historical Wholesale'!L35 -> 450.56 | M35: 1.86 | N35: 838.0416 | P35: 1198.4896
B37: Total | D37: =SUM(D24:D35) -> 23823.7 | E37: =IF(D37<>0,F37/D37,0) -> 3.57 | F37: =SUM(F24:F35) -> 85050.609 | H37: =SUM(H24:H35) -> 70875.89 | I37: =IF(H37<>0,J37/H37,0) -> 0.8 | J37: =SUM(J24:J35) -> 56700.712 | L37: =SUM(L24:L35) -> 70875.89 | M37: =IF(L37<>0,N37/L37,0) -> 1.86 | N37: =SUM(N24:N35) -> 131829.1554 | P37: =SUM(P24:P35) -> 188529.8674
B39: Hydro One | D39: Network | H39: Line Connection | L39: Transformation Connection | P39: Total Line
B41: Month | D41: Units Billed | E41: Rate | F41: Amount | H41: Units Billed | I41: Rate | J41: Amount | L41: Units Billed | M41: Rate | N41: Amount | P41: Amount
B43: January | D43: ='6. Historical Wholesale'!D43 -> 16784 | E43: ='5. UTRs and Sub-Transmission'!I35+'5. UTRs and Sub-Transmission'!I49 -> 2.65 | F43: =D43*E43 -> 44477.6 | H43: ='6. Historical Wholesale'!H43 -> 16910.37 | I43: ='5. UTRs and Sub-Transmission'!I37+'5. UTRs and Sub-Transmission'!I51 -> 0.64 | J43: =H43*I43 -> 10822.6368 | L43: ='6. Historical Wholesale'!L43 -> 16910.37 | M43: ='5. UTRs and Sub-Transmission'!I39 -> 1.5 | N43: =L43*M43 -> 25365.555 | P43: =J43+N43 -> 36188.1918
B44: February | D44: ='6. Historical Wholesale'!D44 -> 16796.71 | E44: =E43 -> 2.65 | F44: 44511.2815 | H44: ='6. Historical Wholesale'!H44 -> 16803.61 | I44: =I43 -> 0.64 | J44: 10754.3104 | L44: ='6. Historical Wholesale'!L44 -> 16803.61 | M44: =M43 -> 1.5 | N44: 25205.415 | P44: 35959.7254
B45: March | D45: ='6. Historical Wholesale'!D45 -> 16039.86 | E45: 2.65 | F45: 42505.629 | H45: ='6. Historical Wholesale'!H45 -> 16089.43 | I45: 0.64 | J45: 10297.2352 | L45: ='6. Historical Wholesale'!L45 -> 16089.43 | M45: 1.5 | N45: 24134.145 | P45: 34431.3802
B46: April | D46: ='6. Historical Wholesale'!D46 -> 16316.66 | E46: 2.65 | F46: 43239.149 | H46: ='6. Historical Wholesale'!H46 -> 16961.85 | I46: 0.64 | J46: 10855.584 | L46: ='6. Historical Wholesale'!L46 -> 16961.85 | M46: 1.5 | N46: 25442.775 | P46: 36298.359
B47: May | D47: ='6. Historical Wholesale'!D47 -> 15599.86 | E47: 2.65 | F47: 41339.629 | H47: ='6. Historical Wholesale'!H47 -> 15611.93 | I47: 0.64 | J47: 9991.6352 | L47: ='6. Historical Wholesale'!L47 -> 15611.93 | M47: 1.5 | N47: 23417.895 | P47: 33409.5302
B48: June | D48: ='6. Historical Wholesale'!D48 -> 15787.57 | E48: 2.65 | F48: 41837.0605 | H48: ='6. Historical Wholesale'!H48 -> 15827.01 | I48: 0.64 | J48: 10129.2864 | L48: ='6. Historical Wholesale'!L48 -> 15827.01 | M48: 1.5 | N48: 23740.515 | P48: 33869.8014
B49: July | D49: ='6. Historical Wholesale'!D49 -> 16629.32 | E49: 2.65 | F49: 44067.698 | H49: ='6. Historical Wholesale'!H49 -> 16646.22 | I49: 0.64 | J49: 10653.5808 | L49: ='6. Historical Wholesale'!L49 -> 16646.22 | M49: 1.5 | N49: 24969.33 | P49: 35622.9108
B50: August | D50: ='6. Historical Wholesale'!D50 -> 15581.78 | E50: 2.65 | F50: 41291.717 | H50: ='6. Historical Wholesale'!H50 -> 16045.86 | I50: 0.64 | J50: 10269.3504 | L50: ='6. Historical Wholesale'!L50 -> 16045.86 | M50: 1.5 | N50: 24068.79 | P50: 34338.1404
B51: September | D51: ='6. Historical Wholesale'!D51 -> 15831.41 | E51: 2.65 | F51: 41953.2365 | H51: ='6. Historical Wholesale'!H51 -> 15998.73 | I51: 0.64 | J51: 10239.1872 | L51: ='6. Historical Wholesale'!L51 -> 15998.73 | M51: 1.5 | N51: 23998.095 | P51: 34237.2822
B52: October | D52: ='6. Historical Wholesale'!D52 -> 15326.96 | E52: 2.65 | F52: 40616.444 | H52: ='6. Historical Wholesale'!H52 -> 15428.56 | I52: 0.64 | J52: 9874.2784 | L52: ='6. Historical Wholesale'!L52 -> 15428.56 | M52: 1.5 | N52: 23142.84 | P52: 33017.1184
B53: November | D53: ='6. Historical Wholesale'!D53 -> 15768.2 | E53: 2.65 | F53: 41785.73 | H53: ='6. Historical Wholesale'!H53 -> 15796.37 | I53: 0.64 | J53: 10109.6768 | L53: ='6. Historical Wholesale'!L53 -> 15796.37 | M53: 1.5 | N53: 23694.555 | P53: 33804.2318
B54: December | D54: ='6. Historical Wholesale'!D54 -> 16331.96 | E54: 2.65 | F54: 43279.694 | H54: ='6. Historical Wholesale'!H54 -> 16411.68 | I54: 0.64 | J54: 10503.4752 | L54: ='6. Historical Wholesale'!L54 -> 16411.68 | M54: 1.5 | N54: 24617.52 | P54: 35120.9952
B56: Total | D56: =SUM(D43:D54) -> 192794.29 | E56: =IF(D56<>0,F56/D56,0) -> 2.65 | F56: =SUM(F43:F54) -> 510904.8685 | H56: =SUM(H43:H54) -> 194531.62 | I56: =IF(H56<>0,J56/H56,0) -> 0.64 | J56: =SUM(J43:J54) -> 124500.2368 | L56: =SUM(L43:L54) -> 194531.62 | M56: =IF(L56<>0,N56/L56,0) -> 1.5 | N56: =SUM(N43:N54) -> 291797.43 | P56: =SUM(P43:P54) -> 416297.6668
B58: Total | D58: Network | H58: Line Connection | L58: Transformation Connection | P58: Total Line
B60: Month | D60: Units Billed | E60: Rate | F60: Amount | H60: Units Billed | I60: Rate | J60: Amount | L60: Units Billed | M60: Rate | N60: Amount | P60: Amount
B62: January | D62: =D24+D43 -> 18731.13 | E62: =IF(D62<>0,F62/D62,0) -> 2.745635426 | F62: =F24+F43 -> 51428.8541 | H62: =H24+H43 -> 18931.6 | I62: =IF(H62<>0,J62/H62,0) -> 0.6570823808 | J62: =J24+J43 -> 12439.6208 | L62: =L24+L43 -> 18931.6 | M62: =IF(L62<>0,N62/L62,0) -> 1.538435357 | N62: =N24+N43 -> 29125.0428 | P62: =J62+N62 -> 41564.6636
B63: February | D63: 17316.18 | E63: 2.677599182 | F63: 46365.7894 | H63: 17360.04 | I63: 0.6451283753 | J63: 11199.4544 | L63: 17360.04 | M63: 1.511538844 | N63: 26240.3748 | P63: 37439.8292
B64: March | D64: 16570.09 | E64: 2.679439285 | F64: 44398.5501 | H64: 16619.66 | I64: 0.645104605 | J64: 10721.4192 | L64: 16619.66 | M64: 1.511485361 | N64: 25120.3728 | P64: 35841.792
B65: April | D65: 17988.87 | E65: 2.735521392 | F65: 49208.9387 | H65: 26504.92 | I65: 0.6976078404 | J65: 18490.04 | L65: 26504.92 | M65: 1.629617641 | N65: 43192.8852 | P65: 61682.9252
B66: May | D66: 16020.8 | E66: 2.674172626 | F66: 42842.3848 | H66: 24722.2 | I66: 0.6989609015 | J66: 17279.8512 | L66: 24722.2 | M66: 1.632662028 | N66: 40362.9972 | P66: 57642.8484
B67: June | D67: 16176.4 | E67: 2.672113919 | F67: 43225.1836 | H67: 16250.4 | I67: 0.6441686605 | J67: 10467.9984 | L67: 16250.4 | M67: 1.509379486 | N67: 24528.0204 | P67: 34996.0188
B68: July | D68: 17044.43 | E68: 2.672406217 | F68: 45549.6407 | H68: 26704.72 | I68: 0.7002650018 | J68: 18700.3808 | L68: 26704.72 | M68: 1.635596254 | N68: 43678.14 | P68: 62378.5208
B69: August | D69: 23952.39 | E69: 2.971511181 | F69: 71174.7947 | H69: 25634.77 | I69: 0.6998493999 | J69: 17940.4784 | L69: 25634.77 | M69: 1.63466115 | N69: 41904.1626 | P69: 59844.641
B70: September | D70: 24035.6 | E70: 2.964028142 | F70: 71242.1948 | H70: 25745.76 | I70: 0.700574044 | J70: 18036.8112 | L70: 25745.76 | M70: 1.636291599 | N70: 42127.5708 | P70: 60164.382
B71: October | D71: 15747.94 | E71: 2.674593794 | F71: 42119.3426 | H71: 24788.93 | I71: 0.700416452 | J71: 17362.5744 | L71: 24788.93 | M71: 1.635937017 | N71: 40553.1282 | P71: 57915.7026
B72: November | D72: 16251.64 | E72: 2.67736738 | F72: 43511.6108 | H72: 25282.27 | I72: 0.7000319512 | J72: 17698.3968 | L72: 25282.27 | M72: 1.63507189 | N72: 41338.329 | P72: 59036.7258
B73: December | D73: 16782.52 | E73: 2.674699223 | F73: 44888.1932 | H73: 16862.24 | I73: 0.644275209 | J73: 10863.9232 | L73: 16862.24 | M73: 1.50961922 | N73: 25455.5616 | P73: 36319.4848
B75: Total | D75: =SUM(D62:D73) -> 216617.99 | E75: =IF(D75<>0,F75/D75,0) -> 2.751181827 | F75: =SUM(F62:F73) -> 595955.4775 | H75: =SUM(H62:H73) -> 265407.51 | I75: =IF(H75<>0,J75/H75,0) -> 0.6827272853 | J75: =SUM(J62:J73) -> 181200.9488 | L75: =SUM(L62:L73) -> 265407.51 | M75: =IF(L75<>0,N75/L75,0) -> 1.596136392 | N75: =SUM(N62:N73) -> 423626.5854 | P75: =SUM(P62:P73) -> 604827.5342

Sheet 9. Adj Network to Current WS
B13: The purpose of this sheet is to re-align the current RTS Network Rates to recover current wholesale network costs.
B22: Rate Class | D22: Unit | F22: Current RTSR-Network | H22: Loss Adjusted Billed kWh | J22: Loss Adjusted Billed kW | L22: Billed Amount | N22: Billed Amount % | P22: Current Wholesale Billing | R22: Proposed RTSR Network
B25: =IF('3. Rate Classes'!Q24=1,'3. Rate Classes'!C24, 0) -> Embedded Distributor | D25: =IF(ISERROR(VLOOKUP($B25, '3. Rate Classes'!$C$24:$H$45,6,0)), "", VLOOKUP($B25, '3. Rate Classes'!$C$24:$H$45,6,0)) -> kW | F25: =IF(ISERROR(VLOOKUP($B25,'3. Rate Classes'!$C$24:$N$45, 8,0)), "", VLOOKUP($B25,'3. Rate Classes'!$C$24:$N$45, 8,0)) -> 2.1063 | H25: =VLOOKUP('9. Adj Network to Current WS'!$B25, '4. RRR Data'!$B$27:$M$49,11,0) -> 76455113.62 | J25: =VLOOKUP('9. Adj Network to Current WS'!$B25, '4. RRR Data'!$B$27:$M$49,12,0) -> 272863.0035 | L25: =IF(F25="", "", IF(D25="kWh", F25*H25, F25*J25)) -> 574731.3443 | N25: =IF(ISERROR(L25/$L$49), "", L25/$L$49) -> 1 | P25: =IF(ISERROR('7. Current Wholesale'!$F$75*N25), "", '7. Current Wholesale'!$F$75*N25) -> 595955.4775 | R25: =IF(D25="","",IF(D25="kWh",IF(H25<>0,P25/H25,),IF(J25<>0,P25/J25,0))) -> 2.184083111
B26: =IF('3. Rate Classes'!Q25=1,'3. Rate Classes'!C25, 0) -> 0 | D26: =IF(ISERROR(VLOOKUP($B26, '3. Rate Classes'!$C$24:$H$45,6,0)), "", VLOOKUP($B26, '3. Rate Classes'!$C$24:$H$45,6,0)) ->  | F26: =IF(ISERROR(VLOOKUP($B26,'3. Rate Classes'!$C$24:$N$45, 8,0)), "", VLOOKUP($B26,'3. Rate Classes'!$C$24:$N$45, 8,0)) ->  | H26: =VLOOKUP('9. Adj Network to Current WS'!$B26, '4. RRR Data'!$B$27:$M$49,11,0) -> 0 | J26: =VLOOKUP('9. Adj Network to Current WS'!$B26, '4. RRR Data'!$B$27:$M$49,12,0) -> 0 | L26: =IF(F26="", "", IF(D26="kWh", F26*H26, F26*J26)) ->  | N26: =IF(ISERROR(L26/$L$49), "", L26/$L$49) ->  | P26: =IF(ISERROR('7. Current Wholesale'!$F$75*N26), "", '7. Current Wholesale'!$F$75*N26) ->  | R26: =IF(D26="","",IF(D26="kWh",IF(H26<>0,P26/H26,),IF(J26<>0,P26/J26,0))) -> 
B27: =IF('3. Rate Classes'!Q26=1,'3. Rate Classes'!C26, 0) -> 0 | D27: =IF(ISERROR(VLOOKUP($B27, '3. Rate Classes'!$C$24:$H$45,6,0)), "", VLOOKUP($B27, '3. Rate Classes'!$C$24:$H$45,6,0)) ->  | F27: =IF(ISERROR(VLOOKUP($B27,'3. Rate Classes'!$C$24:$N$45, 8,0)), "", VLOOKUP($B27,'3. Rate Classes'!$C$24:$N$45, 8,0)) ->  | H27: =VLOOKUP('9. Adj Network to Current WS'!$B27, '4. RRR Data'!$B$27:$M$49,11,0) -> 0 | J27: =VLOOKUP('9. Adj Network to Current WS'!$B27, '4. RRR Data'!$B$27:$M$49,12,0) -> 0 | P27: =IF(ISERROR('7. Current Wholesale'!$F$75*N27), "", '7. Current Wholesale'!$F$75*N27) -> 
B28: =IF('3. Rate Classes'!Q27=1,'3. Rate Classes'!C27, 0) -> 0 | D28: =IF(ISERROR(VLOOKUP($B28, '3. Rate Classes'!$C$24:$H$45,6,0)), "", VLOOKUP($B28, '3. Rate Classes'!$C$24:$H$45,6,0)) ->  | F28: =IF(ISERROR(VLOOKUP($B28,'3. Rate Classes'!$C$24:$N$45, 8,0)), "", VLOOKUP($B28,'3. Rate Classes'!$C$24:$N$45, 8,0)) ->  | H28: =VLOOKUP('9. Adj Network to Current WS'!$B28, '4. RRR Data'!$B$27:$M$49,11,0) -> 0 | J28: =VLOOKUP('9. Adj Network to Current WS'!$B28, '4. RRR Data'!$B$27:$M$49,12,0) -> 0 | P28: =IF(ISERROR('7. Current Wholesale'!$F$75*N28), "", '7. Current Wholesale'!$F$75*N28) -> 
B29: =IF('3. Rate Classes'!Q28=1,'3. Rate Classes'!C28, 0) -> 0 | D29: =IF(ISERROR(VLOOKUP($B29, '3. Rate Classes'!$C$24:$H$45,6,0)), "", VLOOKUP($B29, '3. Rate Classes'!$C$24:$H$45,6,0)) ->  | F29: =IF(ISERROR(VLOOKUP($B29,'3. Rate Classes'!$C$24:$N$45, 8,0)), "", VLOOKUP($B29,'3. Rate Classes'!$C$24:$N$45, 8,0)) ->  | H29: =VLOOKUP('9. Adj Network to Current WS'!$B29, '4. RRR Data'!$B$27:$M$49,11,0) -> 0 | J29: =VLOOKUP('9. Adj Network to Current WS'!$B29, '4. RRR Data'!$B$27:$M$49,12,0) -> 0 | P29: =IF(ISERROR('7. Current Wholesale'!$F$75*N29), "", '7. Current Wholesale'!$F$75*N29) -> 
B30: =IF('3. Rate Classes'!Q29=1,'3. Rate Classes'!C29, 0) -> 0 | D30: =IF(ISERROR(VLOOKUP($B30, '3. Rate Classes'!$C$24:$H$45,6,0)), "", VLOOKUP($B30, '3. Rate Classes'!$C$24:$H$45,6,0)) ->  | F30: =IF(ISERROR(VLOOKUP($B30,'3. Rate Classes'!$C$24:$N$45, 8,0)), "", VLOOKUP($B30,'3. Rate Classes'!$C$24:$N$45, 8,0)) ->  | H30: =VLOOKUP('9. Adj Network to Current WS'!$B30, '4. RRR Data'!$B$27:$M$49,11,0) -> 0 | J30: =VLOOKUP('9. Adj Network to Current WS'!$B30, '4. RRR Data'!$B$27:$M$49,12,0) -> 0 | P30: =IF(ISERROR('7. Current Wholesale'!$F$75*N30), "", '7. Current Wholesale'!$F$75*N30) -> 
B31: =IF('3. Rate Classes'!Q30=1,'3. Rate Classes'!C30, 0) -> 0 | D31: =IF(ISERROR(VLOOKUP($B31, '3. Rate Classes'!$C$24:$H$45,6,0)), "", VLOOKUP($B31, '3. Rate Classes'!$C$24:$H$45,6,0)) ->  | F31: =IF(ISERROR(VLOOKUP($B31,'3. Rate Classes'!$C$24:$N$45, 8,0)), "", VLOOKUP($B31,'3. Rate Classes'!$C$24:$N$45, 8,0)) ->  | H31: =VLOOKUP('9. Adj Network to Current WS'!$B31, '4. RRR Data'!$B$27:$M$49,11,0) -> 0 | J31: =VLOOKUP('9. Adj Network to Current WS'!$B31, '4. RRR Data'!$B$27:$M$49,12,0) -> 0 | P31: =IF(ISERROR('7. Current Wholesale'!$F$75*N31), "", '7. Current Wholesale'!$F$75*N31) -> 
B32: =IF('3. Rate Classes'!Q31=1,'3. Rate Classes'!C31, 0) -> 0 | D32: =IF(ISERROR(VLOOKUP($B32, '3. Rate Classes'!$C$24:$H$45,6,0)), "", VLOOKUP($B32, '3. Rate Classes'!$C$24:$H$45,6,0)) ->  | F32: =IF(ISERROR(VLOOKUP($B32,'3. Rate Classes'!$C$24:$N$45, 8,0)), "", VLOOKUP($B32,'3. Rate Classes'!$C$24:$N$45, 8,0)) ->  | H32: =VLOOKUP('9. Adj Network to Current WS'!$B32, '4. RRR Data'!$B$27:$M$49,11,0) -> 0 | J32: =VLOOKUP('9. Adj Network to Current WS'!$B32, '4. RRR Data'!$B$27:$M$49,12,0) -> 0 | P32: =IF(ISERROR('7. Current Wholesale'!$F$75*N32), "", '7. Current Wholesale'!$F$75*N32) -> 
B33: =IF('3. Rate Classes'!Q32=1,'3. Rate Classes'!C32, 0) -> 0 | D33: =IF(ISERROR(VLOOKUP($B33, '3. Rate Classes'!$C$24:$H$45,6,0)), "", VLOOKUP($B33, '3. Rate Classes'!$C$24:$H$45,6,0)) ->  | F33: =IF(ISERROR(VLOOKUP($B33,'3. Rate Classes'!$C$24:$N$45, 8,0)), "", VLOOKUP($B33,'3. Rate Classes'!$C$24:$N$45, 8,0)) ->  | H33: =VLOOKUP('9. Adj Network to Current WS'!$B33, '4. RRR Data'!$B$27:$M$49,11,0) -> 0 | J33: =VLOOKUP('9. Adj Network to Current WS'!$B33, '4. RRR Data'!$B$27:$M$49,12,0) -> 0 | P33: =IF(ISERROR('7. Current Wholesale'!$F$75*N33), "", '7. Current Wholesale'!$F$75*N33) -> 
B34: =IF('3. Rate Classes'!Q33=1,'3. Rate Classes'!C33, 0) -> 0 | D34: =IF(ISERROR(VLOOKUP($B34, '3. Rate Classes'!$C$24:$H$45,6,0)), "", VLOOKUP($B34, '3. Rate Classes'!$C$24:$H$45,6,0)) ->  | F34: =IF(ISERROR(VLOOKUP($B34,'3. Rate Classes'!$C$24:$N$45, 8,0)), "", VLOOKUP($B34,'3. Rate Classes'!$C$24:$N$45, 8,0)) ->  | H34: =VLOOKUP('9. Adj Network to Current WS'!$B34, '4. RRR Data'!$B$27:$M$49,11,0) -> 0 | J34: =VLOOKUP('9. Adj Network to Current WS'!$B34, '4. RRR Data'!$B$27:$M$49,12,0) -> 0 | P34: =IF(ISERROR('7. Current Wholesale'!$F$75*N34), "", '7. Current Wholesale'!$F$75*N34) -> 
B35: =IF('3. Rate Classes'!Q34=1,'3. Rate Classes'!C34, 0) -> 0 | D35: =IF(ISERROR(VLOOKUP($B35, '3. Rate Classes'!$C$24:$H$45,6,0)), "", VLOOKUP($B35, '3. Rate Classes'!$C$24:$H$45,6,0)) ->  | F35: =IF(ISERROR(VLOOKUP($B35,'3. Rate Classes'!$C$24:$N$45, 8,0)), "", VLOOKUP($B35,'3. Rate Classes'!$C$24:$N$45, 8,0)) ->  | H35: =VLOOKUP('9. Adj Network to Current WS'!$B35, '4. RRR Data'!$B$27:$M$49,11,0) -> 0 | J35: =VLOOKUP('9. Adj Network to Current WS'!$B35, '4. RRR Data'!$B$27:$M$49,12,0) -> 0 | P35: =IF(ISERROR('7. Current Wholesale'!$F$75*N35), "", '7. Current Wholesale'!$F$75*N35) -> 
B36: =IF('3. Rate Classes'!Q35=1,'3. Rate Classes'!C35, 0) -> 0 | D36: =IF(ISERROR(VLOOKUP($B36, '3. Rate Classes'!$C$24:$H$45,6,0)), "", VLOOKUP($B36, '3. Rate Classes'!$C$24:$H$45,6,0)) ->  | F36: =IF(ISERROR(VLOOKUP($B36,'3. Rate Classes'!$C$24:$N$45, 8,0)), "", VLOOKUP($B36,'3. Rate Classes'!$C$24:$N$45, 8,0)) ->  | H36: =VLOOKUP('9. Adj Network to Current WS'!$B36, '4. RRR Data'!$B$27:$M$49,11,0) -> 0 | J36: =VLOOKUP('9. Adj Network to Current WS'!$B36, '4. RRR Data'!$B$27:$M$49,12,0) -> 0 | P36: =IF(ISERROR('7. Current Wholesale'!$F$75*N36), "", '7. Current Wholesale'!$F$75*N36) -> 
B37: =IF('3. Rate Classes'!Q36=1,'3. Rate Classes'!C36, 0) -> 0 | D37: =IF(ISERROR(VLOOKUP($B37, '3. Rate Classes'!$C$24:$H$45,6,0)), "", VLOOKUP($B37, '3. Rate Classes'!$C$24:$H$45,6,0)) ->  | F37: =IF(ISERROR(VLOOKUP($B37,'3. Rate Classes'!$C$24:$N$45, 8,0)), "", VLOOKUP($B37,'3. Rate Classes'!$C$24:$N$45, 8,0)) ->  | H37: =VLOOKUP('9. Adj Network to Current WS'!$B37, '4. RRR Data'!$B$27:$M$49,11,0) -> 0 | J37: =VLOOKUP('9. Adj Network to Current WS'!$B37, '4. RRR Data'!$B$27:$M$49,12,0) -> 0 | P37: =IF(ISERROR('7. Current Wholesale'!$F$75*N37), "", '7. Current Wholesale'!$F$75*N37) -> 
B38: =IF('3. Rate Classes'!Q37=1,'3. Rate Classes'!C37, 0) -> 0 | D38: =IF(ISERROR(VLOOKUP($B38, '3. Rate Classes'!$C$24:$H$45,6,0)), "", VLOOKUP($B38, '3. Rate Classes'!$C$24:$H$45,6,0)) ->  | F38: =IF(ISERROR(VLOOKUP($B38,'3. Rate Classes'!$C$24:$N$45, 8,0)), "", VLOOKUP($B38,'3. Rate Classes'!$C$24:$N$45, 8,0)) ->  | H38: =VLOOKUP('9. Adj Network to Current WS'!$B38, '4. RRR Data'!$B$27:$M$49,11,0) -> 0 | J38: =VLOOKUP('9. Adj Network to Current WS'!$B38, '4. RRR Data'!$B$27:$M$49,12,0) -> 0 | P38: =IF(ISERROR('7. Current Wholesale'!$F$75*N38), "", '7. Current Wholesale'!$F$75*N38) -> 
B39: =IF('3. Rate Classes'!Q38=1,'3. Rate Classes'!C38, 0) -> 0 | D39: =IF(ISERROR(VLOOKUP($B39, '3. Rate Classes'!$C$24:$H$45,6,0)), "", VLOOKUP($B39, '3. Rate Classes'!$C$24:$H$45,6,0)) ->  | F39: =IF(ISERROR(VLOOKUP($B39,'3. Rate Classes'!$C$24:$N$45, 8,0)), "", VLOOKUP($B39,'3. Rate Classes'!$C$24:$N$45, 8,0)) ->  | H39: =VLOOKUP('9. Adj Network to Current WS'!$B39, '4. RRR Data'!$B$27:$M$49,11,0) -> 0 | J39: =VLOOKUP('9. Adj Network to Current WS'!$B39, '4. RRR Data'!$B$27:$M$49,12,0) -> 0 | L39: =IF(F39="", "", IF(D39="kWh", F39*H39, F39*J39)) ->  | P39: =IF(ISERROR('7. Current Wholesale'!$F$75*N39), "", '7. Current Wholesale'!$F$75*N39) -> 
B40: =IF('3. Rate Classes'!Q39=1,'3. Rate Classes'!C39, 0) -> 0 | D40: =IF(ISERROR(VLOOKUP($B40, '3. Rate Classes'!$C$24:$H$45,6,0)), "", VLOOKUP($B40, '3. Rate Classes'!$C$24:$H$45,6,0)) ->  | F40: =IF(ISERROR(VLOOKUP($B40,'3. Rate Classes'!$C$24:$N$45, 8,0)), "", VLOOKUP($B40,'3. Rate Classes'!$C$24:$N$45, 8,0)) ->  | H40: =VLOOKUP('9. Adj Network to Current WS'!$B40, '4. RRR Data'!$B$27:$M$49,11,0) -> 0 | J40: =VLOOKUP('9. Adj Network to Current WS'!$B40, '4. RRR Data'!$B$27:$M$49,12,0) -> 0 | P40: =IF(ISERROR('7. Current Wholesale'!$F$75*N40), "", '7. Current Wholesale'!$F$75*N40) -> 
B41: =IF('3. Rate Classes'!Q40=1,'3. Rate Classes'!C40, 0) -> 0 | D41: =IF(ISERROR(VLOOKUP($B41, '3. Rate Classes'!$C$24:$H$45,6,0)), "", VLOOKUP($B41, '3. Rate Classes'!$C$24:$H$45,6,0)) ->  | F41: =IF(ISERROR(VLOOKUP($B41,'3. Rate Classes'!$C$24:$N$45, 8,0)), "", VLOOKUP($B41,'3. Rate Classes'!$C$24:$N$45, 8,0)) ->  | H41: =VLOOKUP('9. Adj Network to Current WS'!$B41, '4. RRR Data'!$B$27:$M$49,11,0) -> 0 | J41: =VLOOKUP('9. Adj Network to Current WS'!$B41, '4. RRR Data'!$B$27:$M$49,12,0) -> 0 | P41: =IF(ISERROR('7. Current Wholesale'!$F$75*N41), "", '7. Current Wholesale'!$F$75*N41) -> 
B42: =IF('3. Rate Classes'!Q41=1,'3. Rate Classes'!C41, 0) -> 0 | D42: =IF(ISERROR(VLOOKUP($B42, '3. Rate Classes'!$C$24:$H$45,6,0)), "", VLOOKUP($B42, '3. Rate Classes'!$C$24:$H$45,6,0)) ->  | F42: =IF(ISERROR(VLOOKUP($B42,'3. Rate Classes'!$C$24:$N$45, 8,0)), "", VLOOKUP($B42,'3. Rate Classes'!$C$24:$N$45, 8,0)) ->  | H42: =VLOOKUP('9. Adj Network to Current WS'!$B42, '4. RRR Data'!$B$27:$M$49,11,0) -> 0 | J42: =VLOOKUP('9. Adj Network to Current WS'!$B42, '4. RRR Data'!$B$27:$M$49,12,0) -> 0 | P42: =IF(ISERROR('7. Current Wholesale'!$F$75*N42), "", '7. Current Wholesale'!$F$75*N42) -> 
B43: =IF('3. Rate Classes'!Q42=1,'3. Rate Classes'!C42, 0) -> 0 | D43: =IF(ISERROR(VLOOKUP($B43, '3. Rate Classes'!$C$24:$H$45,6,0)), "", VLOOKUP($B43, '3. Rate Classes'!$C$24:$H$45,6,0)) ->  | F43: =IF(ISERROR(VLOOKUP($B43,'3. Rate Classes'!$C$24:$N$45, 8,0)), "", VLOOKUP($B43,'3. Rate Classes'!$C$24:$N$45, 8,0)) ->  | H43: =VLOOKUP('9. Adj Network to Current WS'!$B43, '4. RRR Data'!$B$27:$M$49,11,0) -> 0 | J43: =VLOOKUP('9. Adj Network to Current WS'!$B43, '4. RRR Data'!$B$27:$M$49,12,0) -> 0 | P43: =IF(ISERROR('7. Current Wholesale'!$F$75*N43), "", '7. Current Wholesale'!$F$75*N43) -> 
B44: =IF('3. Rate Classes'!Q43=1,'3. Rate Classes'!C43, 0) -> 0 | D44: =IF(ISERROR(VLOOKUP($B44, '3. Rate Classes'!$C$24:$H$45,6,0)), "", VLOOKUP($B44, '3. Rate Classes'!$C$24:$H$45,6,0)) ->  | F44: =IF(ISERROR(VLOOKUP($B44,'3. Rate Classes'!$C$24:$N$45, 8,0)), "", VLOOKUP($B44,'3. Rate Classes'!$C$24:$N$45, 8,0)) ->  | H44: =VLOOKUP('9. Adj Network to Current WS'!$B44, '4. RRR Data'!$B$27:$M$49,11,0) -> 0 | J44: =VLOOKUP('9. Adj Network to Current WS'!$B44, '4. RRR Data'!$B$27:$M$49,12,0) -> 0 | P44: =IF(ISERROR('7. Current Wholesale'!$F$75*N44), "", '7. Current Wholesale'!$F$75*N44) -> 
B45: =IF('3. Rate Classes'!Q44=1,'3. Rate Classes'!C44, 0) -> 0 | D45: =IF(ISERROR(VLOOKUP($B45, '3. Rate Classes'!$C$24:$H$45,6,0)), "", VLOOKUP($B45, '3. Rate Classes'!$C$24:$H$45,6,0)) ->  | F45: =IF(ISERROR(VLOOKUP($B45,'3. Rate Classes'!$C$24:$N$45, 8,0)), "", VLOOKUP($B45,'3. Rate Classes'!$C$24:$N$45, 8,0)) ->  | H45: =VLOOKUP('9. Adj Network to Current WS'!$B45, '4. RRR Data'!$B$27:$M$49,11,0) -> 0 | J45: =VLOOKUP('9. Adj Network to Current WS'!$B45, '4. RRR Data'!$B$27:$M$49,12,0) -> 0 | P45: =IF(ISERROR('7. Current Wholesale'!$F$75*N45), "", '7. Current Wholesale'!$F$75*N45) -> 
B46: =IF('3. Rate Classes'!Q45=1,'3. Rate Classes'!C45, 0) -> 0 | D46: =IF(ISERROR(VLOOKUP($B46, '3. Rate Classes'!$C$24:$H$45,6,0)), "", VLOOKUP($B46, '3. Rate Classes'!$C$24:$H$45,6,0)) ->  | F46: =IF(ISERROR(VLOOKUP($B46,'3. Rate Classes'!$C$24:$N$45, 8,0)), "", VLOOKUP($B46,'3. Rate Classes'!$C$24:$N$45, 8,0)) ->  | H46: =VLOOKUP('9. Adj Network to Current WS'!$B46, '4. RRR Data'!$B$27:$M$49,11,0) -> 0 | J46: =VLOOKUP('9. Adj Network to Current WS'!$B46, '4. RRR Data'!$B$27:$M$49,12,0) -> 0 | P46: =IF(ISERROR('7. Current Wholesale'!$F$75*N46), "", '7. Current Wholesale'!$F$75*N46) -> 
L49: =SUM(L25:L46) -> 574731.3443

Sheet 10. Adj Conn. to Current WS
B13: The purpose of this sheet is to re-align the current RTS Connection Rates to recover current wholesale connection costs.
B22: Rate Class | D22: Unit | F22: Current RTSR-Connection | H22: Loss Adjusted Billed kWh | J22: Loss Adjusted Billed kW | L22: Billed Amount | N22: Billed Amount % | P22: Current Wholesale Billing | R22: Proposed RTSR Connection
B25: =IF('3. Rate Classes'!Q24=1,'3. Rate Classes'!C24, 0) -> Embedded Distributor | D25: =IF(ISERROR(VLOOKUP($B25, '3. Rate Classes'!$C$24:$H$45,6,0)), "", VLOOKUP($B25, '3. Rate Classes'!$C$24:$H$45,6,0)) -> kW | F25: =IF(ISERROR(VLOOKUP($B25,'3. Rate Classes'!$C$24:$N$45, 11,0)), "", VLOOKUP($B25,'3. Rate Classes'!$C$24:$N$45, 11,0)) -> 1.8422 | H25: =VLOOKUP('9. Adj Network to Current WS'!$B25, '4. RRR Data'!$B$27:$M$49,11,0) -> 76455113.62 | J25: =VLOOKUP('9. Adj Network to Current WS'!$B25, '4. RRR Data'!$B$27:$M$49,12,0) -> 272863.0035 | L25: =IF(F25="", "", IF(D25="kWh", F25*H25, F25*J25)) -> 502668.225 | N25: =IF(ISERROR(L25/$L$49), "", L25/$L$49) -> 1 | P25: =IF(ISERROR('7. Current Wholesale'!$P$75*N25), "", '7. Current Wholesale'!$P$75*N25) -> 604827.5342 | R25: =IF(D25="","",IF(D25="kWh",IF(H25<>0,P25/H25,),IF(J25<>0,P25/J25,0))) -> 2.216597803
B26: =IF('3. Rate Classes'!Q25=1,'3. Rate Classes'!C25, 0) -> 0 | D26: =IF(ISERROR(VLOOKUP($B26, '3. Rate Classes'!$C$24:$H$45,6,0)), "", VLOOKUP($B26, '3. Rate Classes'!$C$24:$H$45,6,0)) ->  | F26: =IF(ISERROR(VLOOKUP($B26,'3. Rate Classes'!$C$24:$N$45, 11,0)), "", VLOOKUP($B26,'3. Rate Classes'!$C$24:$N$45, 11,0)) ->  | H26: =VLOOKUP('9. Adj Network to Current WS'!$B26, '4. RRR Data'!$B$27:$M$49,11,0) -> 0 | J26: =VLOOKUP('9. Adj Network to Current WS'!$B26, '4. RRR Data'!$B$27:$M$49,12,0) -> 0 | P26: =IF(ISERROR('7. Current Wholesale'!$P$75*N26), "", '7. Current Wholesale'!$P$75*N26) -> 
B27: =IF('3. Rate Classes'!Q26=1,'3. Rate Classes'!C26, 0) -> 0 | D27: =IF(ISERROR(VLOOKUP($B27, '3. Rate Classes'!$C$24:$H$45,6,0)), "", VLOOKUP($B27, '3. Rate Classes'!$C$24:$H$45,6,0)) ->  | F27: =IF(ISERROR(VLOOKUP($B27,'3. Rate Classes'!$C$24:$N$45, 11,0)), "", VLOOKUP($B27,'3. Rate Classes'!$C$24:$N$45, 11,0)) ->  | H27: =VLOOKUP('9. Adj Network to Current WS'!$B27, '4. RRR Data'!$B$27:$M$49,11,0) -> 0 | J27: =VLOOKUP('9. Adj Network to Current WS'!$B27, '4. RRR Data'!$B$27:$M$49,12,0) -> 0 | P27: =IF(ISERROR('7. Current Wholesale'!$P$75*N27), "", '7. Current Wholesale'!$P$75*N27) -> 
B28: =IF('3. Rate Classes'!Q27=1,'3. Rate Classes'!C27, 0) -> 0 | D28: =IF(ISERROR(VLOOKUP($B28, '3. Rate Classes'!$C$24:$H$45,6,0)), "", VLOOKUP($B28, '3. Rate Classes'!$C$24:$H$45,6,0)) ->  | F28: =IF(ISERROR(VLOOKUP($B28,'3. Rate Classes'!$C$24:$N$45, 11,0)), "", VLOOKUP($B28,'3. Rate Classes'!$C$24:$N$45, 11,0)) ->  | H28: =VLOOKUP('9. Adj Network to Current WS'!$B28, '4. RRR Data'!$B$27:$M$49,11,0) -> 0 | J28: =VLOOKUP('9. Adj Network to Current WS'!$B28, '4. RRR Data'!$B$27:$M$49,12,0) -> 0 | P28: =IF(ISERROR('7. Current Wholesale'!$P$75*N28), "", '7. Current Wholesale'!$P$75*N28) -> 
B29: =IF('3. Rate Classes'!Q28=1,'3. Rate Classes'!C28, 0) -> 0 | D29: =IF(ISERROR(VLOOKUP($B29, '3. Rate Classes'!$C$24:$H$45,6,0)), "", VLOOKUP($B29, '3. Rate Classes'!$C$24:$H$45,6,0)) ->  | F29: =IF(ISERROR(VLOOKUP($B29,'3. Rate Classes'!$C$24:$N$45, 11,0)), "", VLOOKUP($B29,'3. Rate Classes'!$C$24:$N$45, 11,0)) ->  | H29: =VLOOKUP('9. Adj Network to Current WS'!$B29, '4. RRR Data'!$B$27:$M$49,11,0) -> 0 | J29: =VLOOKUP('9. Adj Network to Current WS'!$B29, '4. RRR Data'!$B$27:$M$49,12,0) -> 0 | P29: =IF(ISERROR('7. Current Wholesale'!$P$75*N29), "", '7. Current Wholesale'!$P$75*N29) -> 
B30: =IF('3. Rate Classes'!Q29=1,'3. Rate Classes'!C29, 0) -> 0 | D30: =IF(ISERROR(VLOOKUP($B30, '3. Rate Classes'!$C$24:$H$45,6,0)), "", VLOOKUP($B30, '3. Rate Classes'!$C$24:$H$45,6,0)) ->  | F30: =IF(ISERROR(VLOOKUP($B30,'3. Rate Classes'!$C$24:$N$45, 11,0)), "", VLOOKUP($B30,'3. Rate Classes'!$C$24:$N$45, 11,0)) ->  | H30: =VLOOKUP('9. Adj Network to Current WS'!$B30, '4. RRR Data'!$B$27:$M$49,11,0) -> 0 | J30: =VLOOKUP('9. Adj Network to Current WS'!$B30, '4. RRR Data'!$B$27:$M$49,12,0) -> 0 | P30: =IF(ISERROR('7. Current Wholesale'!$P$75*N30), "", '7. Current Wholesale'!$P$75*N30) -> 
B31: =IF('3. Rate Classes'!Q30=1,'3. Rate Classes'!C30, 0) -> 0 | D31: =IF(ISERROR(VLOOKUP($B31, '3. Rate Classes'!$C$24:$H$45,6,0)), "", VLOOKUP($B31, '3. Rate Classes'!$C$24:$H$45,6,0)) ->  | F31: =IF(ISERROR(VLOOKUP($B31,'3. Rate Classes'!$C$24:$N$45, 11,0)), "", VLOOKUP($B31,'3. Rate Classes'!$C$24:$N$45, 11,0)) ->  | H31: =VLOOKUP('9. Adj Network to Current WS'!$B31, '4. RRR Data'!$B$27:$M$49,11,0) -> 0 | J31: =VLOOKUP('9. Adj Network to Current WS'!$B31, '4. RRR Data'!$B$27:$M$49,12,0) -> 0 | P31: =IF(ISERROR('7. Current Wholesale'!$P$75*N31), "", '7. Current Wholesale'!$P$75*N31) -> 
B32: =IF('3. Rate Classes'!Q31=1,'3. Rate Classes'!C31, 0) -> 0 | D32: =IF(ISERROR(VLOOKUP($B32, '3. Rate Classes'!$C$24:$H$45,6,0)), "", VLOOKUP($B32, '3. Rate Classes'!$C$24:$H$45,6,0)) ->  | F32: =IF(ISERROR(VLOOKUP($B32,'3. Rate Classes'!$C$24:$N$45, 11,0)), "", VLOOKUP($B32,'3. Rate Classes'!$C$24:$N$45, 11,0)) ->  | H32: =VLOOKUP('9. Adj Network to Current WS'!$B32, '4. RRR Data'!$B$27:$M$49,11,0) -> 0 | J32: =VLOOKUP('9. Adj Network to Current WS'!$B32, '4. RRR Data'!$B$27:$M$49,12,0) -> 0 | P32: =IF(ISERROR('7. Current Wholesale'!$P$75*N32), "", '7. Current Wholesale'!$P$75*N32) -> 
B33: =IF('3. Rate Classes'!Q32=1,'3. Rate Classes'!C32, 0) -> 0 | D33: =IF(ISERROR(VLOOKUP($B33, '3. Rate Classes'!$C$24:$H$45,6,0)), "", VLOOKUP($B33, '3. Rate Classes'!$C$24:$H$45,6,0)) ->  | F33: =IF(ISERROR(VLOOKUP($B33,'3. Rate Classes'!$C$24:$N$45, 11,0)), "", VLOOKUP($B33,'3. Rate Classes'!$C$24:$N$45, 11,0)) ->  | H33: =VLOOKUP('9. Adj Network to Current WS'!$B33, '4. RRR Data'!$B$27:$M$49,11,0) -> 0 | J33: =VLOOKUP('9. Adj Network to Current WS'!$B33, '4. RRR Data'!$B$27:$M$49,12,0) -> 0 | P33: =IF(ISERROR('7. Current Wholesale'!$P$75*N33), "", '7. Current Wholesale'!$P$75*N33) -> 
B34: =IF('3. Rate Classes'!Q33=1,'3. Rate Classes'!C33, 0) -> 0 | D34: =IF(ISERROR(VLOOKUP($B34, '3. Rate Classes'!$C$24:$H$45,6,0)), "", VLOOKUP($B34, '3. Rate Classes'!$C$24:$H$45,6,0)) ->  | F34: =IF(ISERROR(VLOOKUP($B34,'3. Rate Classes'!$C$24:$N$45, 11,0)), "", VLOOKUP($B34,'3. Rate Classes'!$C$24:$N$45, 11,0)) ->  | H34: =VLOOKUP('9. Adj Network to Current WS'!$B34, '4. RRR Data'!$B$27:$M$49,11,0) -> 0 | J34: =VLOOKUP('9. Adj Network to Current WS'!$B34, '4. RRR Data'!$B$27:$M$49,12,0) -> 0 | P34: =IF(ISERROR('7. Current Wholesale'!$P$75*N34), "", '7. Current Wholesale'!$P$75*N34) -> 
B35: =IF('3. Rate Classes'!Q34=1,'3. Rate Classes'!C34, 0) -> 0 | D35: =IF(ISERROR(VLOOKUP($B35, '3. Rate Classes'!$C$24:$H$45,6,0)), "", VLOOKUP($B35, '3. Rate Classes'!$C$24:$H$45,6,0)) ->  | F35: =IF(ISERROR(VLOOKUP($B35,'3. Rate Classes'!$C$24:$N$45, 11,0)), "", VLOOKUP($B35,'3. Rate Classes'!$C$24:$N$45, 11,0)) ->  | H35: =VLOOKUP('9. Adj Network to Current WS'!$B35, '4. RRR Data'!$B$27:$M$49,11,0) -> 0 | J35: =VLOOKUP('9. Adj Network to Current WS'!$B35, '4. RRR Data'!$B$27:$M$49,12,0) -> 0 | P35: =IF(ISERROR('7. Current Wholesale'!$P$75*N35), "", '7. Current Wholesale'!$P$75*N35) -> 
B36: =IF('3. Rate Classes'!Q35=1,'3. Rate Classes'!C35, 0) -> 0 | D36: =IF(ISERROR(VLOOKUP($B36, '3. Rate Classes'!$C$24:$H$45,6,0)), "", VLOOKUP($B36, '3. Rate Classes'!$C$24:$H$45,6,0)) ->  | F36: =IF(ISERROR(VLOOKUP($B36,'3. Rate Classes'!$C$24:$N$45, 11,0)), "", VLOOKUP($B36,'3. Rate Classes'!$C$24:$N$45, 11,0)) ->  | H36: =VLOOKUP('9. Adj Network to Current WS'!$B36, '4. RRR Data'!$B$27:$M$49,11,0) -> 0 | J36: =VLOOKUP('9. Adj Network to Current WS'!$B36, '4. RRR Data'!$B$27:$M$49,12,0) -> 0 | P36: =IF(ISERROR('7. Current Wholesale'!$P$75*N36), "", '7. Current Wholesale'!$P$75*N36) -> 
B37: =IF('3. Rate Classes'!Q36=1,'3. Rate Classes'!C36, 0) -> 0 | D37: =IF(ISERROR(VLOOKUP($B37, '3. Rate Classes'!$C$24:$H$45,6,0)), "", VLOOKUP($B37, '3. Rate Classes'!$C$24:$H$45,6,0)) ->  | F37: =IF(ISERROR(VLOOKUP($B37,'3. Rate Classes'!$C$24:$N$45, 11,0)), "", VLOOKUP($B37,'3. Rate Classes'!$C$24:$N$45, 11,0)) ->  | H37: =VLOOKUP('9. Adj Network to Current WS'!$B37, '4. RRR Data'!$B$27:$M$49,11,0) -> 0 | J37: =VLOOKUP('9. Adj Network to Current WS'!$B37, '4. RRR Data'!$B$27:$M$49,12,0) -> 0 | P37: =IF(ISERROR('7. Current Wholesale'!$P$75*N37), "", '7. Current Wholesale'!$P$75*N37) -> 
B38: =IF('3. Rate Classes'!Q37=1,'3. Rate Classes'!C37, 0) -> 0 | D38: =IF(ISERROR(VLOOKUP($B38, '3. Rate Classes'!$C$24:$H$45,6,0)), "", VLOOKUP($B38, '3. Rate Classes'!$C$24:$H$45,6,0)) ->  | F38: =IF(ISERROR(VLOOKUP($B38,'3. Rate Classes'!$C$24:$N$45, 11,0)), "", VLOOKUP($B38,'3. Rate Classes'!$C$24:$N$45, 11,0)) ->  | H38: =VLOOKUP('9. Adj Network to Current WS'!$B38, '4. RRR Data'!$B$27:$M$49,11,0) -> 0 | J38: =VLOOKUP('9. Adj Network to Current WS'!$B38, '4. RRR Data'!$B$27:$M$49,12,0) -> 0 | P38: =IF(ISERROR('7. Current Wholesale'!$P$75*N38), "", '7. Current Wholesale'!$P$75*N38) -> 
B39: =IF('3. Rate Classes'!Q38=1,'3. Rate Classes'!C38, 0) -> 0 | D39: =IF(ISERROR(VLOOKUP($B39, '3. Rate Classes'!$C$24:$H$45,6,0)), "", VLOOKUP($B39, '3. Rate Classes'!$C$24:$H$45,6,0)) ->  | F39: =IF(ISERROR(VLOOKUP($B39,'3. Rate Classes'!$C$24:$N$45, 11,0)), "", VLOOKUP($B39,'3. Rate Classes'!$C$24:$N$45, 11,0)) ->  | H39: =VLOOKUP('9. Adj Network to Current WS'!$B39, '4. RRR Data'!$B$27:$M$49,11,0) -> 0 | J39: =VLOOKUP('9. Adj Network to Current WS'!$B39, '4. RRR Data'!$B$27:$M$49,12,0) -> 0 | P39: =IF(ISERROR('7. Current Wholesale'!$P$75*N39), "", '7. Current Wholesale'!$P$75*N39) -> 
B40: =IF('3. Rate Classes'!Q39=1,'3. Rate Classes'!C39, 0) -> 0 | D40: =IF(ISERROR(VLOOKUP($B40, '3. Rate Classes'!$C$24:$H$45,6,0)), "", VLOOKUP($B40, '3. Rate Classes'!$C$24:$H$45,6,0)) ->  | F40: =IF(ISERROR(VLOOKUP($B40,'3. Rate Classes'!$C$24:$N$45, 11,0)), "", VLOOKUP($B40,'3. Rate Classes'!$C$24:$N$45, 11,0)) ->  | H40: =VLOOKUP('9. Adj Network to Current WS'!$B40, '4. RRR Data'!$B$27:$M$49,11,0) -> 0 | J40: =VLOOKUP('9. Adj Network to Current WS'!$B40, '4. RRR Data'!$B$27:$M$49,12,0) -> 0 | P40: =IF(ISERROR('7. Current Wholesale'!$P$75*N40), "", '7. Current Wholesale'!$P$75*N40) -> 
B41: =IF('3. Rate Classes'!Q40=1,'3. Rate Classes'!C40, 0) -> 0 | D41: =IF(ISERROR(VLOOKUP($B41, '3. Rate Classes'!$C$24:$H$45,6,0)), "", VLOOKUP($B41, '3. Rate Classes'!$C$24:$H$45,6,0)) ->  | F41: =IF(ISERROR(VLOOKUP($B41,'3. Rate Classes'!$C$24:$N$45, 11,0)), "", VLOOKUP($B41,'3. Rate Classes'!$C$24:$N$45, 11,0)) ->  | H41: =VLOOKUP('9. Adj Network to Current WS'!$B41, '4. RRR Data'!$B$27:$M$49,11,0) -> 0 | J41: =VLOOKUP('9. Adj Network to Current WS'!$B41, '4. RRR Data'!$B$27:$M$49,12,0) -> 0 | P41: =IF(ISERROR('7. Current Wholesale'!$P$75*N41), "", '7. Current Wholesale'!$P$75*N41) -> 
B42: =IF('3. Rate Classes'!Q41=1,'3. Rate Classes'!C41, 0) -> 0 | D42: =IF(ISERROR(VLOOKUP($B42, '3. Rate Classes'!$C$24:$H$45,6,0)), "", VLOOKUP($B42, '3. Rate Classes'!$C$24:$H$45,6,0)) ->  | F42: =IF(ISERROR(VLOOKUP($B42,'3. Rate Classes'!$C$24:$N$45, 11,0)), "", VLOOKUP($B42,'3. Rate Classes'!$C$24:$N$45, 11,0)) ->  | H42: =VLOOKUP('9. Adj Network to Current WS'!$B42, '4. RRR Data'!$B$27:$M$49,11,0) -> 0 | J42: =VLOOKUP('9. Adj Network to Current WS'!$B42, '4. RRR Data'!$B$27:$M$49,12,0) -> 0 | P42: =IF(ISERROR('7. Current Wholesale'!$P$75*N42), "", '7. Current Wholesale'!$P$75*N42) -> 
B43: =IF('3. Rate Classes'!Q42=1,'3. Rate Classes'!C42, 0) -> 0 | D43: =IF(ISERROR(VLOOKUP($B43, '3. Rate Classes'!$C$24:$H$45,6,0)), "", VLOOKUP($B43, '3. Rate Classes'!$C$24:$H$45,6,0)) ->  | F43: =IF(ISERROR(VLOOKUP($B43,'3. Rate Classes'!$C$24:$N$45, 11,0)), "", VLOOKUP($B43,'3. Rate Classes'!$C$24:$N$45, 11,0)) ->  | H43: =VLOOKUP('9. Adj Network to Current WS'!$B43, '4. RRR Data'!$B$27:$M$49,11,0) -> 0 | J43: =VLOOKUP('9. Adj Network to Current WS'!$B43, '4. RRR Data'!$B$27:$M$49,12,0) -> 0 | P43: =IF(ISERROR('7. Current Wholesale'!$P$75*N43), "", '7. Current Wholesale'!$P$75*N43) -> 
B44: =IF('3. Rate Classes'!Q43=1,'3. Rate Classes'!C43, 0) -> 0 | D44: =IF(ISERROR(VLOOKUP($B44, '3. Rate Classes'!$C$24:$H$45,6,0)), "", VLOOKUP($B44, '3. Rate Classes'!$C$24:$H$45,6,0)) ->  | F44: =IF(ISERROR(VLOOKUP($B44,'3. Rate Classes'!$C$24:$N$45, 11,0)), "", VLOOKUP($B44,'3. Rate Classes'!$C$24:$N$45, 11,0)) ->  | H44: =VLOOKUP('9. Adj Network to Current WS'!$B44, '4. RRR Data'!$B$27:$M$49,11,0) -> 0 | J44: =VLOOKUP('9. Adj Network to Current WS'!$B44, '4. RRR Data'!$B$27:$M$49,12,0) -> 0 | P44: =IF(ISERROR('7. Current Wholesale'!$P$75*N44), "", '7. Current Wholesale'!$P$75*N44) -> 
B45: =IF('3. Rate Classes'!Q44=1,'3. Rate Classes'!C44, 0) -> 0 | D45: =IF(ISERROR(VLOOKUP($B45, '3. Rate Classes'!$C$24:$H$45,6,0)), "", VLOOKUP($B45, '3. Rate Classes'!$C$24:$H$45,6,0)) ->  | F45: =IF(ISERROR(VLOOKUP($B45,'3. Rate Classes'!$C$24:$N$45, 11,0)), "", VLOOKUP($B45,'3. Rate Classes'!$C$24:$N$45, 11,0)) ->  | H45: =VLOOKUP('9. Adj Network to Current WS'!$B45, '4. RRR Data'!$B$27:$M$49,11,0) -> 0 | J45: =VLOOKUP('9. Adj Network to Current WS'!$B45, '4. RRR Data'!$B$27:$M$49,12,0) -> 0 | P45: =IF(ISERROR('7. Current Wholesale'!$P$75*N45), "", '7. Current Wholesale'!$P$75*N45) -> 
B46: =IF('3. Rate Classes'!Q45=1,'3. Rate Classes'!C45, 0) -> 0 | D46: =IF(ISERROR(VLOOKUP($B46, '3. Rate Classes'!$C$24:$H$45,6,0)), "", VLOOKUP($B46, '3. Rate Classes'!$C$24:$H$45,6,0)) ->  | F46: =IF(ISERROR(VLOOKUP($B46,'3. Rate Classes'!$C$24:$N$45, 11,0)), "", VLOOKUP($B46,'3. Rate Classes'!$C$24:$N$45, 11,0)) ->  | H46: =VLOOKUP('9. Adj Network to Current WS'!$B46, '4. RRR Data'!$B$27:$M$49,11,0) -> 0 | J46: =VLOOKUP('9. Adj Network to Current WS'!$B46, '4. RRR Data'!$B$27:$M$49,12,0) -> 0 | P46: =IF(ISERROR('7. Current Wholesale'!$P$75*N46), "", '7. Current Wholesale'!$P$75*N46) -> 
L49: =SUM(L25:L46) -> 502668.225

Sheet 11. Adj Network to Forecast WS
B13: The purpose of this sheet is to update the re-align RTS Network Rates to recover forecast wholesale network costs.
B22: Rate Class | D22: Unit | F22: Adjusted RTSR-Network | H22: Loss Adjusted Billed kWh | J22: Loss Adjusted Billed kW | L22: Billed Amount | N22: Billed Amount % | P22: Forecast Wholesale Billing | R22: Proposed RTSR Network
B25: =IF('3. Rate Classes'!Q24=1,'3. Rate Classes'!C24, 0) -> Embedded Distributor | D25: =IF(ISERROR(VLOOKUP($B25, '3. Rate Classes'!$C$24:$H$45,6,0)), "", VLOOKUP($B25, '3. Rate Classes'!$C$24:$H$45,6,0)) -> kW | F25: =VLOOKUP($B25, '9. Adj Network to Current WS'!$B$25:$R$47, 17,0) -> 2.184083111 | H25: =VLOOKUP('9. Adj Network to Current WS'!$B25, '4. RRR Data'!$B$27:$M$49,11,0) -> 76455113.62 | J25: =VLOOKUP('9. Adj Network to Current WS'!$B25, '4. RRR Data'!$B$27:$M$49,12,0) -> 272863.0035 | L25: =IF(F25="", "", IF(D25="kWh", F25*H25, F25*J25)) -> 595955.4775 | N25: =IF(ISERROR(L25/$L$49), "", L25/$L$49) -> 1 | P25: =IF(ISERROR('8. Forecast Wholesale'!$F$75*N25), "", '8. Forecast Wholesale'!$F$75*N25) -> 595955.4775 | R25: =IF(D25="","",IF(D25="kWh",IF(H25<>0,P25/H25,),IF(J25<>0,P25/J25,0))) -> 2.184083111
B26: =IF('3. Rate Classes'!Q25=1,'3. Rate Classes'!C25, 0) -> 0 | D26: =IF(ISERROR(VLOOKUP($B26, '3. Rate Classes'!$C$24:$H$45,6,0)), "", VLOOKUP($B26, '3. Rate Classes'!$C$24:$H$45,6,0)) ->  | F26: =VLOOKUP($B26, '9. Adj Network to Current WS'!$B$25:$R$47, 17,0) ->  | H26: =VLOOKUP('9. Adj Network to Current WS'!$B26, '4. RRR Data'!$B$27:$M$49,11,0) -> 0 | J26: =VLOOKUP('9. Adj Network to Current WS'!$B26, '4. RRR Data'!$B$27:$M$49,12,0) -> 0 | P26: =IF(ISERROR('8. Forecast Wholesale'!$F$75*N26), "", '8. Forecast Wholesale'!$F$75*N26) -> 
B27: =IF('3. Rate Classes'!Q26=1,'3. Rate Classes'!C26, 0) -> 0 | D27: =IF(ISERROR(VLOOKUP($B27, '3. Rate Classes'!$C$24:$H$45,6,0)), "", VLOOKUP($B27, '3. Rate Classes'!$C$24:$H$45,6,0)) ->  | F27: =VLOOKUP($B27, '9. Adj Network to Current WS'!$B$25:$R$47, 17,0) ->  | H27: =VLOOKUP('9. Adj Network to Current WS'!$B27, '4. RRR Data'!$B$27:$M$49,11,0) -> 0 | J27: =VLOOKUP('9. Adj Network to Current WS'!$B27, '4. RRR Data'!$B$27:$M$49,12,0) -> 0 | P27: =IF(ISERROR('8. Forecast Wholesale'!$F$75*N27), "", '8. Forecast Wholesale'!$F$75*N27) -> 
B28: =IF('3. Rate Classes'!Q27=1,'3. Rate Classes'!C27, 0) -> 0 | D28: =IF(ISERROR(VLOOKUP($B28, '3. Rate Classes'!$C$24:$H$45,6,0)), "", VLOOKUP($B28, '3. Rate Classes'!$C$24:$H$45,6,0)) ->  | F28: =VLOOKUP($B28, '9. Adj Network to Current WS'!$B$25:$R$47, 17,0) ->  | H28: =VLOOKUP('9. Adj Network to Current WS'!$B28, '4. RRR Data'!$B$27:$M$49,11,0) -> 0 | J28: =VLOOKUP('9. Adj Network to Current WS'!$B28, '4. RRR Data'!$B$27:$M$49,12,0) -> 0 | P28: =IF(ISERROR('8. Forecast Wholesale'!$F$75*N28), "", '8. Forecast Wholesale'!$F$75*N28) -> 
B29: =IF('3. Rate Classes'!Q28=1,'3. Rate Classes'!C28, 0) -> 0 | D29: =IF(ISERROR(VLOOKUP($B29, '3. Rate Classes'!$C$24:$H$45,6,0)), "", VLOOKUP($B29, '3. Rate Classes'!$C$24:$H$45,6,0)) ->  | F29: =VLOOKUP($B29, '9. Adj Network to Current WS'!$B$25:$R$47, 17,0) ->  | H29: =VLOOKUP('9. Adj Network to Current WS'!$B29, '4. RRR Data'!$B$27:$M$49,11,0) -> 0 | J29: =VLOOKUP('9. Adj Network to Current WS'!$B29, '4. RRR Data'!$B$27:$M$49,12,0) -> 0 | P29: =IF(ISERROR('8. Forecast Wholesale'!$F$75*N29), "", '8. Forecast Wholesale'!$F$75*N29) -> 
B30: =IF('3. Rate Classes'!Q29=1,'3. Rate Classes'!C29, 0) -> 0 | D30: =IF(ISERROR(VLOOKUP($B30, '3. Rate Classes'!$C$24:$H$45,6,0)), "", VLOOKUP($B30, '3. Rate Classes'!$C$24:$H$45,6,0)) ->  | F30: =VLOOKUP($B30, '9. Adj Network to Current WS'!$B$25:$R$47, 17,0) ->  | H30: =VLOOKUP('9. Adj Network to Current WS'!$B30, '4. RRR Data'!$B$27:$M$49,11,0) -> 0 | J30: =VLOOKUP('9. Adj Network to Current WS'!$B30, '4. RRR Data'!$B$27:$M$49,12,0) -> 0 | P30: =IF(ISERROR('8. Forecast Wholesale'!$F$75*N30), "", '8. Forecast Wholesale'!$F$75*N30) -> 
B31: =IF('3. Rate Classes'!Q30=1,'3. Rate Classes'!C30, 0) -> 0 | D31: =IF(ISERROR(VLOOKUP($B31, '3. Rate Classes'!$C$24:$H$45,6,0)), "", VLOOKUP($B31, '3. Rate Classes'!$C$24:$H$45,6,0)) ->  | F31: =VLOOKUP($B31, '9. Adj Network to Current WS'!$B$25:$R$47, 17,0) ->  | H31: =VLOOKUP('9. Adj Network to Current WS'!$B31, '4. RRR Data'!$B$27:$M$49,11,0) -> 0 | J31: =VLOOKUP('9. Adj Network to Current WS'!$B31, '4. RRR Data'!$B$27:$M$49,12,0) -> 0 | P31: =IF(ISERROR('8. Forecast Wholesale'!$F$75*N31), "", '8. Forecast Wholesale'!$F$75*N31) -> 
B32: =IF('3. Rate Classes'!Q31=1,'3. Rate Classes'!C31, 0) -> 0 | D32: =IF(ISERROR(VLOOKUP($B32, '3. Rate Classes'!$C$24:$H$45,6,0)), "", VLOOKUP($B32, '3. Rate Classes'!$C$24:$H$45,6,0)) ->  | F32: =VLOOKUP($B32, '9. Adj Network to Current WS'!$B$25:$R$47, 17,0) ->  | H32: =VLOOKUP('9. Adj Network to Current WS'!$B32, '4. RRR Data'!$B$27:$M$49,11,0) -> 0 | J32: =VLOOKUP('9. Adj Network to Current WS'!$B32, '4. RRR Data'!$B$27:$M$49,12,0) -> 0 | P32: =IF(ISERROR('8. Forecast Wholesale'!$F$75*N32), "", '8. Forecast Wholesale'!$F$75*N32) -> 
B33: =IF('3. Rate Classes'!Q32=1,'3. Rate Classes'!C32, 0) -> 0 | D33: =IF(ISERROR(VLOOKUP($B33, '3. Rate Classes'!$C$24:$H$45,6,0)), "", VLOOKUP($B33, '3. Rate Classes'!$C$24:$H$45,6,0)) ->  | F33: =VLOOKUP($B33, '9. Adj Network to Current WS'!$B$25:$R$47, 17,0) ->  | H33: =VLOOKUP('9. Adj Network to Current WS'!$B33, '4. RRR Data'!$B$27:$M$49,11,0) -> 0 | J33: =VLOOKUP('9. Adj Network to Current WS'!$B33, '4. RRR Data'!$B$27:$M$49,12,0) -> 0 | P33: =IF(ISERROR('8. Forecast Wholesale'!$F$75*N33), "", '8. Forecast Wholesale'!$F$75*N33) -> 
B34: =IF('3. Rate Classes'!Q33=1,'3. Rate Classes'!C33, 0) -> 0 | D34: =IF(ISERROR(VLOOKUP($B34, '3. Rate Classes'!$C$24:$H$45,6,0)), "", VLOOKUP($B34, '3. Rate Classes'!$C$24:$H$45,6,0)) ->  | F34: =VLOOKUP($B34, '9. Adj Network to Current WS'!$B$25:$R$47, 17,0) ->  | H34: =VLOOKUP('9. Adj Network to Current WS'!$B34, '4. RRR Data'!$B$27:$M$49,11,0) -> 0 | J34: =VLOOKUP('9. Adj Network to Current WS'!$B34, '4. RRR Data'!$B$27:$M$49,12,0) -> 0 | P34: =IF(ISERROR('8. Forecast Wholesale'!$F$75*N34), "", '8. Forecast Wholesale'!$F$75*N34) -> 
B35: =IF('3. Rate Classes'!Q34=1,'3. Rate Classes'!C34, 0) -> 0 | D35: =IF(ISERROR(VLOOKUP($B35, '3. Rate Classes'!$C$24:$H$45,6,0)), "", VLOOKUP($B35, '3. Rate Classes'!$C$24:$H$45,6,0)) ->  | F35: =VLOOKUP($B35, '9. Adj Network to Current WS'!$B$25:$R$47, 17,0) ->  | H35: =VLOOKUP('9. Adj Network to Current WS'!$B35, '4. RRR Data'!$B$27:$M$49,11,0) -> 0 | J35: =VLOOKUP('9. Adj Network to Current WS'!$B35, '4. RRR Data'!$B$27:$M$49,12,0) -> 0 | P35: =IF(ISERROR('8. Forecast Wholesale'!$F$75*N35), "", '8. Forecast Wholesale'!$F$75*N35) -> 
B36: =IF('3. Rate Classes'!Q35=1,'3. Rate Classes'!C35, 0) -> 0 | D36: =IF(ISERROR(VLOOKUP($B36, '3. Rate Classes'!$C$24:$H$45,6,0)), "", VLOOKUP($B36, '3. Rate Classes'!$C$24:$H$45,6,0)) ->  | F36: =VLOOKUP($B36, '9. Adj Network to Current WS'!$B$25:$R$47, 17,0) ->  | H36: =VLOOKUP('9. Adj Network to Current WS'!$B36, '4. RRR Data'!$B$27:$M$49,11,0) -> 0 | J36: =VLOOKUP('9. Adj Network to Current WS'!$B36, '4. RRR Data'!$B$27:$M$49,12,0) -> 0 | P36: =IF(ISERROR('8. Forecast Wholesale'!$F$75*N36), "", '8. Forecast Wholesale'!$F$75*N36) -> 
B37: =IF('3. Rate Classes'!Q36=1,'3. Rate Classes'!C36, 0) -> 0 | D37: =IF(ISERROR(VLOOKUP($B37, '3. Rate Classes'!$C$24:$H$45,6,0)), "", VLOOKUP($B37, '3. Rate Classes'!$C$24:$H$45,6,0)) ->  | F37: =VLOOKUP($B37, '9. Adj Network to Current WS'!$B$25:$R$47, 17,0) ->  | H37: =VLOOKUP('9. Adj Network to Current WS'!$B37, '4. RRR Data'!$B$27:$M$49,11,0) -> 0 | J37: =VLOOKUP('9. Adj Network to Current WS'!$B37, '4. RRR Data'!$B$27:$M$49,12,0) -> 0 | P37: =IF(ISERROR('8. Forecast Wholesale'!$F$75*N37), "", '8. Forecast Wholesale'!$F$75*N37) -> 
B38: =IF('3. Rate Classes'!Q37=1,'3. Rate Classes'!C37, 0) -> 0 | D38: =IF(ISERROR(VLOOKUP($B38, '3. Rate Classes'!$C$24:$H$45,6,0)), "", VLOOKUP($B38, '3. Rate Classes'!$C$24:$H$45,6,0)) ->  | F38: =VLOOKUP($B38, '9. Adj Network to Current WS'!$B$25:$R$47, 17,0) ->  | H38: =VLOOKUP('9. Adj Network to Current WS'!$B38, '4. RRR Data'!$B$27:$M$49,11,0) -> 0 | J38: =VLOOKUP('9. Adj Network to Current WS'!$B38, '4. RRR Data'!$B$27:$M$49,12,0) -> 0 | P38: =IF(ISERROR('8. Forecast Wholesale'!$F$75*N38), "", '8. Forecast Wholesale'!$F$75*N38) -> 
B39: =IF('3. Rate Classes'!Q38=1,'3. Rate Classes'!C38, 0) -> 0 | D39: =IF(ISERROR(VLOOKUP($B39, '3. Rate Classes'!$C$24:$H$45,6,0)), "", VLOOKUP($B39, '3. Rate Classes'!$C$24:$H$45,6,0)) ->  | F39: =VLOOKUP($B39, '9. Adj Network to Current WS'!$B$25:$R$47, 17,0) ->  | H39: =VLOOKUP('9. Adj Network to Current WS'!$B39, '4. RRR Data'!$B$27:$M$49,11,0) -> 0 | J39: =VLOOKUP('9. Adj Network to Current WS'!$B39, '4. RRR Data'!$B$27:$M$49,12,0) -> 0 | P39: =IF(ISERROR('8. Forecast Wholesale'!$F$75*N39), "", '8. Forecast Wholesale'!$F$75*N39) -> 
B40: =IF('3. Rate Classes'!Q39=1,'3. Rate Classes'!C39, 0) -> 0 | D40: =IF(ISERROR(VLOOKUP($B40, '3. Rate Classes'!$C$24:$H$45,6,0)), "", VLOOKUP($B40, '3. Rate Classes'!$C$24:$H$45,6,0)) ->  | F40: =VLOOKUP($B40, '9. Adj Network to Current WS'!$B$25:$R$47, 17,0) ->  | H40: =VLOOKUP('9. Adj Network to Current WS'!$B40, '4. RRR Data'!$B$27:$M$49,11,0) -> 0 | J40: =VLOOKUP('9. Adj Network to Current WS'!$B40, '4. RRR Data'!$B$27:$M$49,12,0) -> 0 | P40: =IF(ISERROR('8. Forecast Wholesale'!$F$75*N40), "", '8. Forecast Wholesale'!$F$75*N40) -> 
B41: =IF('3. Rate Classes'!Q40=1,'3. Rate Classes'!C40, 0) -> 0 | D41: =IF(ISERROR(VLOOKUP($B41, '3. Rate Classes'!$C$24:$H$45,6,0)), "", VLOOKUP($B41, '3. Rate Classes'!$C$24:$H$45,6,0)) ->  | F41: =VLOOKUP($B41, '9. Adj Network to Current WS'!$B$25:$R$47, 17,0) ->  | H41: =VLOOKUP('9. Adj Network to Current WS'!$B41, '4. RRR Data'!$B$27:$M$49,11,0) -> 0 | J41: =VLOOKUP('9. Adj Network to Current WS'!$B41, '4. RRR Data'!$B$27:$M$49,12,0) -> 0 | P41: =IF(ISERROR('8. Forecast Wholesale'!$F$75*N41), "", '8. Forecast Wholesale'!$F$75*N41) -> 
B42: =IF('3. Rate Classes'!Q41=1,'3. Rate Classes'!C41, 0) -> 0 | D42: =IF(ISERROR(VLOOKUP($B42, '3. Rate Classes'!$C$24:$H$45,6,0)), "", VLOOKUP($B42, '3. Rate Classes'!$C$24:$H$45,6,0)) ->  | F42: =VLOOKUP($B42, '9. Adj Network to Current WS'!$B$25:$R$47, 17,0) ->  | H42: =VLOOKUP('9. Adj Network to Current WS'!$B42, '4. RRR Data'!$B$27:$M$49,11,0) -> 0 | J42: =VLOOKUP('9. Adj Network to Current WS'!$B42, '4. RRR Data'!$B$27:$M$49,12,0) -> 0 | P42: =IF(ISERROR('8. Forecast Wholesale'!$F$75*N42), "", '8. Forecast Wholesale'!$F$75*N42) -> 
B43: =IF('3. Rate Classes'!Q42=1,'3. Rate Classes'!C42, 0) -> 0 | D43: =IF(ISERROR(VLOOKUP($B43, '3. Rate Classes'!$C$24:$H$45,6,0)), "", VLOOKUP($B43, '3. Rate Classes'!$C$24:$H$45,6,0)) ->  | F43: =VLOOKUP($B43, '9. Adj Network to Current WS'!$B$25:$R$47, 17,0) ->  | H43: =VLOOKUP('9. Adj Network to Current WS'!$B43, '4. RRR Data'!$B$27:$M$49,11,0) -> 0 | J43: =VLOOKUP('9. Adj Network to Current WS'!$B43, '4. RRR Data'!$B$27:$M$49,12,0) -> 0 | P43: =IF(ISERROR('8. Forecast Wholesale'!$F$75*N43), "", '8. Forecast Wholesale'!$F$75*N43) -> 
B44: =IF('3. Rate Classes'!Q43=1,'3. Rate Classes'!C43, 0) -> 0 | D44: =IF(ISERROR(VLOOKUP($B44, '3. Rate Classes'!$C$24:$H$45,6,0)), "", VLOOKUP($B44, '3. Rate Classes'!$C$24:$H$45,6,0)) ->  | F44: =VLOOKUP($B44, '9. Adj Network to Current WS'!$B$25:$R$47, 17,0) ->  | H44: =VLOOKUP('9. Adj Network to Current WS'!$B44, '4. RRR Data'!$B$27:$M$49,11,0) -> 0 | J44: =VLOOKUP('9. Adj Network to Current WS'!$B44, '4. RRR Data'!$B$27:$M$49,12,0) -> 0 | P44: =IF(ISERROR('8. Forecast Wholesale'!$F$75*N44), "", '8. Forecast Wholesale'!$F$75*N44) -> 
B45: =IF('3. Rate Classes'!Q44=1,'3. Rate Classes'!C44, 0) -> 0 | D45: =IF(ISERROR(VLOOKUP($B45, '3. Rate Classes'!$C$24:$H$45,6,0)), "", VLOOKUP($B45, '3. Rate Classes'!$C$24:$H$45,6,0)) ->  | F45: =VLOOKUP($B45, '9. Adj Network to Current WS'!$B$25:$R$47, 17,0) ->  | H45: =VLOOKUP('9. Adj Network to Current WS'!$B45, '4. RRR Data'!$B$27:$M$49,11,0) -> 0 | J45: =VLOOKUP('9. Adj Network to Current WS'!$B45, '4. RRR Data'!$B$27:$M$49,12,0) -> 0 | P45: =IF(ISERROR('8. Forecast Wholesale'!$F$75*N45), "", '8. Forecast Wholesale'!$F$75*N45) -> 
B46: =IF('3. Rate Classes'!Q45=1,'3. Rate Classes'!C45, 0) -> 0 | D46: =IF(ISERROR(VLOOKUP($B46, '3. Rate Classes'!$C$24:$H$45,6,0)), "", VLOOKUP($B46, '3. Rate Classes'!$C$24:$H$45,6,0)) ->  | F46: =VLOOKUP($B46, '9. Adj Network to Current WS'!$B$25:$R$47, 17,0) ->  | H46: =VLOOKUP('9. Adj Network to Current WS'!$B46, '4. RRR Data'!$B$27:$M$49,11,0) -> 0 | J46: =VLOOKUP('9. Adj Network to Current WS'!$B46, '4. RRR Data'!$B$27:$M$49,12,0) -> 0 | P46: =IF(ISERROR('8. Forecast Wholesale'!$F$75*N46), "", '8. Forecast Wholesale'!$F$75*N46) -> 
L49: =SUM(L25:L46) -> 595955.4775

Sheet 12. Adj Conn. to Forecast WS
B13: The purpose of this sheet is to update the re-aligned RTS Connection Rates to recover forecast wholesale connection costs.
B19: Rate Class
B22: Rate Class | D22: Unit | F22: Adjusted RTSR-Connection | H22: Loss Adjusted Billed kWh | J22: Loss Adjusted Billed kW | L22: Billed Amount | N22: Billed Amount % | P22: Forecast Wholesale Billing | R22: Proposed RTSR Connection
B25: =IF('3. Rate Classes'!Q24=1,'3. Rate Classes'!C24, 0) -> Embedded Distributor | D25: =IF(ISERROR(VLOOKUP($B25, '3. Rate Classes'!$C$24:$H$45,6,0)), "", VLOOKUP($B25, '3. Rate Classes'!$C$24:$H$45,6,0)) -> kW | F25: =VLOOKUP($B25, '10. Adj Conn. to Current WS'!$B$25:$R$47, 17,0) -> 2.216597803 | H25: =VLOOKUP('9. Adj Network to Current WS'!$B25, '4. RRR Data'!$B$27:$M$49,11,0) -> 76455113.62 | J25: =VLOOKUP('9. Adj Network to Current WS'!$B25, '4. RRR Data'!$B$27:$M$49,12,0) -> 272863.0035 | L25: =IF(F25="", "", IF(D25="kWh", F25*H25, F25*J25)) -> 604827.5342 | N25: =IF(ISERROR(L25/$L$49), "", L25/$L$49) -> 1 | P25: =IF(ISERROR('8. Forecast Wholesale'!$P$75*N25), "", '8. Forecast Wholesale'!$P$75*N25) -> 604827.5342 | R25: =IF(D25="","",IF(D25="kWh",IF(H25<>0,P25/H25,),IF(J25<>0,P25/J25,0))) -> 2.216597803
B26: =IF('3. Rate Classes'!Q25=1,'3. Rate Classes'!C25, 0) -> 0 | D26: =IF(ISERROR(VLOOKUP($B26, '3. Rate Classes'!$C$24:$H$45,6,0)), "", VLOOKUP($B26, '3. Rate Classes'!$C$24:$H$45,6,0)) ->  | F26: =VLOOKUP($B26, '10. Adj Conn. to Current WS'!$B$25:$R$47, 17,0) ->  | H26: =VLOOKUP('9. Adj Network to Current WS'!$B26, '4. RRR Data'!$B$27:$M$49,11,0) -> 0 | J26: =VLOOKUP('9. Adj Network to Current WS'!$B26, '4. RRR Data'!$B$27:$M$49,12,0) -> 0 | P26: =IF(ISERROR('8. Forecast Wholesale'!$P$75*N26), "", '8. Forecast Wholesale'!$P$75*N26) -> 
B27: =IF('3. Rate Classes'!Q26=1,'3. Rate Classes'!C26, 0) -> 0 | D27: =IF(ISERROR(VLOOKUP($B27, '3. Rate Classes'!$C$24:$H$45,6,0)), "", VLOOKUP($B27, '3. Rate Classes'!$C$24:$H$45,6,0)) ->  | F27: =VLOOKUP($B27, '10. Adj Conn. to Current WS'!$B$25:$R$47, 17,0) ->  | H27: =VLOOKUP('9. Adj Network to Current WS'!$B27, '4. RRR Data'!$B$27:$M$49,11,0) -> 0 | J27: =VLOOKUP('9. Adj Network to Current WS'!$B27, '4. RRR Data'!$B$27:$M$49,12,0) -> 0 | P27: =IF(ISERROR('8. Forecast Wholesale'!$P$75*N27), "", '8. Forecast Wholesale'!$P$75*N27) -> 
B28: =IF('3. Rate Classes'!Q27=1,'3. Rate Classes'!C27, 0) -> 0 | D28: =IF(ISERROR(VLOOKUP($B28, '3. Rate Classes'!$C$24:$H$45,6,0)), "", VLOOKUP($B28, '3. Rate Classes'!$C$24:$H$45,6,0)) ->  | F28: =VLOOKUP($B28, '10. Adj Conn. to Current WS'!$B$25:$R$47, 17,0) ->  | H28: =VLOOKUP('9. Adj Network to Current WS'!$B28, '4. RRR Data'!$B$27:$M$49,11,0) -> 0 | J28: =VLOOKUP('9. Adj Network to Current WS'!$B28, '4. RRR Data'!$B$27:$M$49,12,0) -> 0 | P28: =IF(ISERROR('8. Forecast Wholesale'!$P$75*N28), "", '8. Forecast Wholesale'!$P$75*N28) -> 
B29: =IF('3. Rate Classes'!Q28=1,'3. Rate Classes'!C28, 0) -> 0 | D29: =IF(ISERROR(VLOOKUP($B29, '3. Rate Classes'!$C$24:$H$45,6,0)), "", VLOOKUP($B29, '3. Rate Classes'!$C$24:$H$45,6,0)) ->  | F29: =VLOOKUP($B29, '10. Adj Conn. to Current WS'!$B$25:$R$47, 17,0) ->  | H29: =VLOOKUP('9. Adj Network to Current WS'!$B29, '4. RRR Data'!$B$27:$M$49,11,0) -> 0 | J29: =VLOOKUP('9. Adj Network to Current WS'!$B29, '4. RRR Data'!$B$27:$M$49,12,0) -> 0 | P29: =IF(ISERROR('8. Forecast Wholesale'!$P$75*N29), "", '8. Forecast Wholesale'!$P$75*N29) -> 
B30: =IF('3. Rate Classes'!Q29=1,'3. Rate Classes'!C29, 0) -> 0 | D30: =IF(ISERROR(VLOOKUP($B30, '3. Rate Classes'!$C$24:$H$45,6,0)), "", VLOOKUP($B30, '3. Rate Classes'!$C$24:$H$45,6,0)) ->  | F30: =VLOOKUP($B30, '10. Adj Conn. to Current WS'!$B$25:$R$47, 17,0) ->  | H30: =VLOOKUP('9. Adj Network to Current WS'!$B30, '4. RRR Data'!$B$27:$M$49,11,0) -> 0 | J30: =VLOOKUP('9. Adj Network to Current WS'!$B30, '4. RRR Data'!$B$27:$M$49,12,0) -> 0 | P30: =IF(ISERROR('8. Forecast Wholesale'!$P$75*N30), "", '8. Forecast Wholesale'!$P$75*N30) -> 
B31: =IF('3. Rate Classes'!Q30=1,'3. Rate Classes'!C30, 0) -> 0 | D31: =IF(ISERROR(VLOOKUP($B31, '3. Rate Classes'!$C$24:$H$45,6,0)), "", VLOOKUP($B31, '3. Rate Classes'!$C$24:$H$45,6,0)) ->  | F31: =VLOOKUP($B31, '10. Adj Conn. to Current WS'!$B$25:$R$47, 17,0) ->  | H31: =VLOOKUP('9. Adj Network to Current WS'!$B31, '4. RRR Data'!$B$27:$M$49,11,0) -> 0 | J31: =VLOOKUP('9. Adj Network to Current WS'!$B31, '4. RRR Data'!$B$27:$M$49,12,0) -> 0 | P31: =IF(ISERROR('8. Forecast Wholesale'!$P$75*N31), "", '8. Forecast Wholesale'!$P$75*N31) -> 
B32: =IF('3. Rate Classes'!Q31=1,'3. Rate Classes'!C31, 0) -> 0 | D32: =IF(ISERROR(VLOOKUP($B32, '3. Rate Classes'!$C$24:$H$45,6,0)), "", VLOOKUP($B32, '3. Rate Classes'!$C$24:$H$45,6,0)) ->  | F32: =VLOOKUP($B32, '10. Adj Conn. to Current WS'!$B$25:$R$47, 17,0) ->  | H32: =VLOOKUP('9. Adj Network to Current WS'!$B32, '4. RRR Data'!$B$27:$M$49,11,0) -> 0 | J32: =VLOOKUP('9. Adj Network to Current WS'!$B32, '4. RRR Data'!$B$27:$M$49,12,0) -> 0 | P32: =IF(ISERROR('8. Forecast Wholesale'!$P$75*N32), "", '8. Forecast Wholesale'!$P$75*N32) -> 
B33: =IF('3. Rate Classes'!Q32=1,'3. Rate Classes'!C32, 0) -> 0 | D33: =IF(ISERROR(VLOOKUP($B33, '3. Rate Classes'!$C$24:$H$45,6,0)), "", VLOOKUP($B33, '3. Rate Classes'!$C$24:$H$45,6,0)) ->  | F33: =VLOOKUP($B33, '10. Adj Conn. to Current WS'!$B$25:$R$47, 17,0) ->  | H33: =VLOOKUP('9. Adj Network to Current WS'!$B33, '4. RRR Data'!$B$27:$M$49,11,0) -> 0 | J33: =VLOOKUP('9. Adj Network to Current WS'!$B33, '4. RRR Data'!$B$27:$M$49,12,0) -> 0 | P33: =IF(ISERROR('8. Forecast Wholesale'!$P$75*N33), "", '8. Forecast Wholesale'!$P$75*N33) -> 
B34: =IF('3. Rate Classes'!Q33=1,'3. Rate Classes'!C33, 0) -> 0 | D34: =IF(ISERROR(VLOOKUP($B34, '3. Rate Classes'!$C$24:$H$45,6,0)), "", VLOOKUP($B34, '3. Rate Classes'!$C$24:$H$45,6,0)) ->  | F34: =VLOOKUP($B34, '10. Adj Conn. to Current WS'!$B$25:$R$47, 17,0) ->  | H34: =VLOOKUP('9. Adj Network to Current WS'!$B34, '4. RRR Data'!$B$27:$M$49,11,0) -> 0 | J34: =VLOOKUP('9. Adj Network to Current WS'!$B34, '4. RRR Data'!$B$27:$M$49,12,0) -> 0 | P34: =IF(ISERROR('8. Forecast Wholesale'!$P$75*N34), "", '8. Forecast Wholesale'!$P$75*N34) -> 
B35: =IF('3. Rate Classes'!Q34=1,'3. Rate Classes'!C34, 0) -> 0 | D35: =IF(ISERROR(VLOOKUP($B35, '3. Rate Classes'!$C$24:$H$45,6,0)), "", VLOOKUP($B35, '3. Rate Classes'!$C$24:$H$45,6,0)) ->  | F35: =VLOOKUP($B35, '10. Adj Conn. to Current WS'!$B$25:$R$47, 17,0) ->  | H35: =VLOOKUP('9. Adj Network to Current WS'!$B35, '4. RRR Data'!$B$27:$M$49,11,0) -> 0 | J35: =VLOOKUP('9. Adj Network to Current WS'!$B35, '4. RRR Data'!$B$27:$M$49,12,0) -> 0 | P35: =IF(ISERROR('8. Forecast Wholesale'!$P$75*N35), "", '8. Forecast Wholesale'!$P$75*N35) -> 
B36: =IF('3. Rate Classes'!Q35=1,'3. Rate Classes'!C35, 0) -> 0 | D36: =IF(ISERROR(VLOOKUP($B36, '3. Rate Classes'!$C$24:$H$45,6,0)), "", VLOOKUP($B36, '3. Rate Classes'!$C$24:$H$45,6,0)) ->  | F36: =VLOOKUP($B36, '10. Adj Conn. to Current WS'!$B$25:$R$47, 17,0) ->  | H36: =VLOOKUP('9. Adj Network to Current WS'!$B36, '4. RRR Data'!$B$27:$M$49,11,0) -> 0 | J36: =VLOOKUP('9. Adj Network to Current WS'!$B36, '4. RRR Data'!$B$27:$M$49,12,0) -> 0 | P36: =IF(ISERROR('8. Forecast Wholesale'!$P$75*N36), "", '8. Forecast Wholesale'!$P$75*N36) -> 
B37: =IF('3. Rate Classes'!Q36=1,'3. Rate Classes'!C36, 0) -> 0 | D37: =IF(ISERROR(VLOOKUP($B37, '3. Rate Classes'!$C$24:$H$45,6,0)), "", VLOOKUP($B37, '3. Rate Classes'!$C$24:$H$45,6,0)) ->  | F37: =VLOOKUP($B37, '10. Adj Conn. to Current WS'!$B$25:$R$47, 17,0) ->  | H37: =VLOOKUP('9. Adj Network to Current WS'!$B37, '4. RRR Data'!$B$27:$M$49,11,0) -> 0 | J37: =VLOOKUP('9. Adj Network to Current WS'!$B37, '4. RRR Data'!$B$27:$M$49,12,0) -> 0 | P37: =IF(ISERROR('8. Forecast Wholesale'!$P$75*N37), "", '8. Forecast Wholesale'!$P$75*N37) -> 
B38: =IF('3. Rate Classes'!Q37=1,'3. Rate Classes'!C37, 0) -> 0 | D38: =IF(ISERROR(VLOOKUP($B38, '3. Rate Classes'!$C$24:$H$45,6,0)), "", VLOOKUP($B38, '3. Rate Classes'!$C$24:$H$45,6,0)) ->  | F38: =VLOOKUP($B38, '10. Adj Conn. to Current WS'!$B$25:$R$47, 17,0) ->  | H38: =VLOOKUP('9. Adj Network to Current WS'!$B38, '4. RRR Data'!$B$27:$M$49,11,0) -> 0 | J38: =VLOOKUP('9. Adj Network to Current WS'!$B38, '4. RRR Data'!$B$27:$M$49,12,0) -> 0 | P38: =IF(ISERROR('8. Forecast Wholesale'!$P$75*N38), "", '8. Forecast Wholesale'!$P$75*N38) -> 
B39: =IF('3. Rate Classes'!Q38=1,'3. Rate Classes'!C38, 0) -> 0 | D39: =IF(ISERROR(VLOOKUP($B39, '3. Rate Classes'!$C$24:$H$45,6,0)), "", VLOOKUP($B39, '3. Rate Classes'!$C$24:$H$45,6,0)) ->  | F39: =VLOOKUP($B39, '10. Adj Conn. to Current WS'!$B$25:$R$47, 17,0) ->  | H39: =VLOOKUP('9. Adj Network to Current WS'!$B39, '4. RRR Data'!$B$27:$M$49,11,0) -> 0 | J39: =VLOOKUP('9. Adj Network to Current WS'!$B39, '4. RRR Data'!$B$27:$M$49,12,0) -> 0 | P39: =IF(ISERROR('8. Forecast Wholesale'!$P$75*N39), "", '8. Forecast Wholesale'!$P$75*N39) -> 
B40: =IF('3. Rate Classes'!Q39=1,'3. Rate Classes'!C39, 0) -> 0 | D40: =IF(ISERROR(VLOOKUP($B40, '3. Rate Classes'!$C$24:$H$45,6,0)), "", VLOOKUP($B40, '3. Rate Classes'!$C$24:$H$45,6,0)) ->  | F40: =VLOOKUP($B40, '10. Adj Conn. to Current WS'!$B$25:$R$47, 17,0) ->  | H40: =VLOOKUP('9. Adj Network to Current WS'!$B40, '4. RRR Data'!$B$27:$M$49,11,0) -> 0 | J40: =VLOOKUP('9. Adj Network to Current WS'!$B40, '4. RRR Data'!$B$27:$M$49,12,0) -> 0 | P40: =IF(ISERROR('8. Forecast Wholesale'!$P$75*N40), "", '8. Forecast Wholesale'!$P$75*N40) -> 
B41: =IF('3. Rate Classes'!Q40=1,'3. Rate Classes'!C40, 0) -> 0 | D41: =IF(ISERROR(VLOOKUP($B41, '3. Rate Classes'!$C$24:$H$45,6,0)), "", VLOOKUP($B41, '3. Rate Classes'!$C$24:$H$45,6,0)) ->  | F41: =VLOOKUP($B41, '10. Adj Conn. to Current WS'!$B$25:$R$47, 17,0) ->  | H41: =VLOOKUP('9. Adj Network to Current WS'!$B41, '4. RRR Data'!$B$27:$M$49,11,0) -> 0 | J41: =VLOOKUP('9. Adj Network to Current WS'!$B41, '4. RRR Data'!$B$27:$M$49,12,0) -> 0 | P41: =IF(ISERROR('8. Forecast Wholesale'!$P$75*N41), "", '8. Forecast Wholesale'!$P$75*N41) -> 
B42: =IF('3. Rate Classes'!Q41=1,'3. Rate Classes'!C41, 0) -> 0 | D42: =IF(ISERROR(VLOOKUP($B42, '3. Rate Classes'!$C$24:$H$45,6,0)), "", VLOOKUP($B42, '3. Rate Classes'!$C$24:$H$45,6,0)) ->  | F42: =VLOOKUP($B42, '10. Adj Conn. to Current WS'!$B$25:$R$47, 17,0) ->  | H42: =VLOOKUP('9. Adj Network to Current WS'!$B42, '4. RRR Data'!$B$27:$M$49,11,0) -> 0 | J42: =VLOOKUP('9. Adj Network to Current WS'!$B42, '4. RRR Data'!$B$27:$M$49,12,0) -> 0 | P42: =IF(ISERROR('8. Forecast Wholesale'!$P$75*N42), "", '8. Forecast Wholesale'!$P$75*N42) -> 
B43: =IF('3. Rate Classes'!Q42=1,'3. Rate Classes'!C42, 0) -> 0 | D43: =IF(ISERROR(VLOOKUP($B43, '3. Rate Classes'!$C$24:$H$45,6,0)), "", VLOOKUP($B43, '3. Rate Classes'!$C$24:$H$45,6,0)) ->  | F43: =VLOOKUP($B43, '10. Adj Conn. to Current WS'!$B$25:$R$47, 17,0) ->  | H43: =VLOOKUP('9. Adj Network to Current WS'!$B43, '4. RRR Data'!$B$27:$M$49,11,0) -> 0 | J43: =VLOOKUP('9. Adj Network to Current WS'!$B43, '4. RRR Data'!$B$27:$M$49,12,0) -> 0 | P43: =IF(ISERROR('8. Forecast Wholesale'!$P$75*N43), "", '8. Forecast Wholesale'!$P$75*N43) -> 
B44: =IF('3. Rate Classes'!Q43=1,'3. Rate Classes'!C43, 0) -> 0 | D44: =IF(ISERROR(VLOOKUP($B44, '3. Rate Classes'!$C$24:$H$45,6,0)), "", VLOOKUP($B44, '3. Rate Classes'!$C$24:$H$45,6,0)) ->  | F44: =VLOOKUP($B44, '10. Adj Conn. to Current WS'!$B$25:$R$47, 17,0) ->  | H44: =VLOOKUP('9. Adj Network to Current WS'!$B44, '4. RRR Data'!$B$27:$M$49,11,0) -> 0 | J44: =VLOOKUP('9. Adj Network to Current WS'!$B44, '4. RRR Data'!$B$27:$M$49,12,0) -> 0 | P44: =IF(ISERROR('8. Forecast Wholesale'!$P$75*N44), "", '8. Forecast Wholesale'!$P$75*N44) -> 
B45: =IF('3. Rate Classes'!Q44=1,'3. Rate Classes'!C44, 0) -> 0 | D45: =IF(ISERROR(VLOOKUP($B45, '3. Rate Classes'!$C$24:$H$45,6,0)), "", VLOOKUP($B45, '3. Rate Classes'!$C$24:$H$45,6,0)) ->  | F45: =VLOOKUP($B45, '10. Adj Conn. to Current WS'!$B$25:$R$47, 17,0) ->  | H45: =VLOOKUP('9. Adj Network to Current WS'!$B45, '4. RRR Data'!$B$27:$M$49,11,0) -> 0 | J45: =VLOOKUP('9. Adj Network to Current WS'!$B45, '4. RRR Data'!$B$27:$M$49,12,0) -> 0 | P45: =IF(ISERROR('8. Forecast Wholesale'!$P$75*N45), "", '8. Forecast Wholesale'!$P$75*N45) -> 
B46: =IF('3. Rate Classes'!Q45=1,'3. Rate Classes'!C45, 0) -> 0 | D46: =IF(ISERROR(VLOOKUP($B46, '3. Rate Classes'!$C$24:$H$45,6,0)), "", VLOOKUP($B46, '3. Rate Classes'!$C$24:$H$45,6,0)) ->  | F46: =VLOOKUP($B46, '10. Adj Conn. to Current WS'!$B$25:$R$47, 17,0) ->  | H46: =VLOOKUP('9. Adj Network to Current WS'!$B46, '4. RRR Data'!$B$27:$M$49,11,0) -> 0 | J46: =VLOOKUP('9. Adj Network to Current WS'!$B46, '4. RRR Data'!$B$27:$M$49,12,0) -> 0 | P46: =IF(ISERROR('8. Forecast Wholesale'!$P$75*N46), "", '8. Forecast Wholesale'!$P$75*N46) -> 
L49: =SUM(L25:L46) -> 604827.5342

Sheet 13. Final 2013 RTS Rates
B13: For Cost of Service Applicants, please enter the following Proposed RTS rates into your rates model. For IRM applicants, please enter these rates into the 2013 IRM Rate Generator, Sheet 11 "Proposed Rates", column I. Please note that the rate description for the RTSRs has been transfered to Sheet 11, Column A from Sheet 4.
B23: Rate Class | D23: Unit | F23: Proposed RTSR Network | H23: Proposed RTSR Connection
B26: =IF('3. Rate Classes'!Q24=1,'3. Rate Classes'!C24, 0) -> Embedded Distributor | D26: =IF(ISERROR(VLOOKUP($B26, '3. Rate Classes'!$C$24:$H$45,6,0)), "", VLOOKUP($B26, '3. Rate Classes'!$C$24:$H$45,6,0)) -> kW | F26: =VLOOKUP($B26, '11. Adj Network to Forecast WS'!$B$25:$R$48,17,0) -> 2.184083111 | H26: =VLOOKUP($B26, '12. Adj Conn. to Forecast WS'!$B$25:$R$48,17,0) -> 2.216597803
B27: =IF('3. Rate Classes'!Q25=1,'3. Rate Classes'!C25, 0) -> 0 | D27: =IF(ISERROR(VLOOKUP($B27, '3. Rate Classes'!$C$24:$H$45,6,0)), "", VLOOKUP($B27, '3. Rate Classes'!$C$24:$H$45,6,0)) ->  | F27: =VLOOKUP($B27, '11. Adj Network to Forecast WS'!$B$25:$R$48,17,0) ->  | H27: =VLOOKUP($B27, '12. Adj Conn. to Forecast WS'!$B$25:$R$48,17,0) -> 
B28: =IF('3. Rate Classes'!Q26=1,'3. Rate Classes'!C26, 0) -> 0 | D28: =IF(ISERROR(VLOOKUP($B28, '3. Rate Classes'!$C$24:$H$45,6,0)), "", VLOOKUP($B28, '3. Rate Classes'!$C$24:$H$45,6,0)) ->  | F28: =VLOOKUP($B28, '11. Adj Network to Forecast WS'!$B$25:$R$48,17,0) ->  | H28: =VLOOKUP($B28, '12. Adj Conn. to Forecast WS'!$B$25:$R$48,17,0) -> 
B29: =IF('3. Rate Classes'!Q27=1,'3. Rate Classes'!C27, 0) -> 0 | D29: =IF(ISERROR(VLOOKUP($B29, '3. Rate Classes'!$C$24:$H$45,6,0)), "", VLOOKUP($B29, '3. Rate Classes'!$C$24:$H$45,6,0)) ->  | F29: =VLOOKUP($B29, '11. Adj Network to Forecast WS'!$B$25:$R$48,17,0) ->  | H29: =VLOOKUP($B29, '12. Adj Conn. to Forecast WS'!$B$25:$R$48,17,0) -> 
B30: =IF('3. Rate Classes'!Q28=1,'3. Rate Classes'!C28, 0) -> 0 | D30: =IF(ISERROR(VLOOKUP($B30, '3. Rate Classes'!$C$24:$H$45,6,0)), "", VLOOKUP($B30, '3. Rate Classes'!$C$24:$H$45,6,0)) ->  | F30: =VLOOKUP($B30, '11. Adj Network to Forecast WS'!$B$25:$R$48,17,0) ->  | H30: =VLOOKUP($B30, '12. Adj Conn. to Forecast WS'!$B$25:$R$48,17,0) -> 
B31: =IF('3. Rate Classes'!Q29=1,'3. Rate Classes'!C29, 0) -> 0 | D31: =IF(ISERROR(VLOOKUP($B31, '3. Rate Classes'!$C$24:$H$45,6,0)), "", VLOOKUP($B31, '3. Rate Classes'!$C$24:$H$45,6,0)) ->  | F31: =VLOOKUP($B31, '11. Adj Network to Forecast WS'!$B$25:$R$48,17,0) ->  | H31: =VLOOKUP($B31, '12. Adj Conn. to Forecast WS'!$B$25:$R$48,17,0) -> 
B32: =IF('3. Rate Classes'!Q30=1,'3. Rate Classes'!C30, 0) -> 0 | D32: =IF(ISERROR(VLOOKUP($B32, '3. Rate Classes'!$C$24:$H$45,6,0)), "", VLOOKUP($B32, '3. Rate Classes'!$C$24:$H$45,6,0)) ->  | F32: =VLOOKUP($B32, '11. Adj Network to Forecast WS'!$B$25:$R$48,17,0) ->  | H32: =VLOOKUP($B32, '12. Adj Conn. to Forecast WS'!$B$25:$R$48,17,0) -> 
B33: =IF('3. Rate Classes'!Q31=1,'3. Rate Classes'!C31, 0) -> 0 | D33: =IF(ISERROR(VLOOKUP($B33, '3. Rate Classes'!$C$24:$H$45,6,0)), "", VLOOKUP($B33, '3. Rate Classes'!$C$24:$H$45,6,0)) ->  | F33: =VLOOKUP($B33, '11. Adj Network to Forecast WS'!$B$25:$R$48,17,0) ->  | H33: =VLOOKUP($B33, '12. Adj Conn. to Forecast WS'!$B$25:$R$48,17,0) -> 
B34: =IF('3. Rate Classes'!Q32=1,'3. Rate Classes'!C32, 0) -> 0 | D34: =IF(ISERROR(VLOOKUP($B34, '3. Rate Classes'!$C$24:$H$45,6,0)), "", VLOOKUP($B34, '3. Rate Classes'!$C$24:$H$45,6,0)) ->  | F34: =VLOOKUP($B34, '11. Adj Network to Forecast WS'!$B$25:$R$48,17,0) ->  | H34: =VLOOKUP($B34, '12. Adj Conn. to Forecast WS'!$B$25:$R$48,17,0) -> 
B35: =IF('3. Rate Classes'!Q33=1,'3. Rate Classes'!C33, 0) -> 0 | D35: =IF(ISERROR(VLOOKUP($B35, '3. Rate Classes'!$C$24:$H$45,6,0)), "", VLOOKUP($B35, '3. Rate Classes'!$C$24:$H$45,6,0)) ->  | F35: =VLOOKUP($B35, '11. Adj Network to Forecast WS'!$B$25:$R$48,17,0) ->  | H35: =VLOOKUP($B35, '12. Adj Conn. to Forecast WS'!$B$25:$R$48,17,0) -> 
B36: =IF('3. Rate Classes'!Q34=1,'3. Rate Classes'!C34, 0) -> 0 | D36: =IF(ISERROR(VLOOKUP($B36, '3. Rate Classes'!$C$24:$H$45,6,0)), "", VLOOKUP($B36, '3. Rate Classes'!$C$24:$H$45,6,0)) ->  | F36: =VLOOKUP($B36, '11. Adj Network to Forecast WS'!$B$25:$R$48,17,0) ->  | H36: =VLOOKUP($B36, '12. Adj Conn. to Forecast WS'!$B$25:$R$48,17,0) -> 
B37: =IF('3. Rate Classes'!Q35=1,'3. Rate Classes'!C35, 0) -> 0 | D37: =IF(ISERROR(VLOOKUP($B37, '3. Rate Classes'!$C$24:$H$45,6,0)), "", VLOOKUP($B37, '3. Rate Classes'!$C$24:$H$45,6,0)) ->  | F37: =VLOOKUP($B37, '11. Adj Network to Forecast WS'!$B$25:$R$48,17,0) ->  | H37: =VLOOKUP($B37, '12. Adj Conn. to Forecast WS'!$B$25:$R$48,17,0) -> 
B38: =IF('3. Rate Classes'!Q36=1,'3. Rate Classes'!C36, 0) -> 0 | D38: =IF(ISERROR(VLOOKUP($B38, '3. Rate Classes'!$C$24:$H$45,6,0)), "", VLOOKUP($B38, '3. Rate Classes'!$C$24:$H$45,6,0)) ->  | F38: =VLOOKUP($B38, '11. Adj Network to Forecast WS'!$B$25:$R$48,17,0) ->  | H38: =VLOOKUP($B38, '12. Adj Conn. to Forecast WS'!$B$25:$R$48,17,0) -> 
B39: =IF('3. Rate Classes'!Q37=1,'3. Rate Classes'!C37, 0) -> 0 | D39: =IF(ISERROR(VLOOKUP($B39, '3. Rate Classes'!$C$24:$H$45,6,0)), "", VLOOKUP($B39, '3. Rate Classes'!$C$24:$H$45,6,0)) ->  | F39: =VLOOKUP($B39, '11. Adj Network to Forecast WS'!$B$25:$R$48,17,0) ->  | H39: =VLOOKUP($B39, '12. Adj Conn. to Forecast WS'!$B$25:$R$48,17,0) -> 
B40: =IF('3. Rate Classes'!Q38=1,'3. Rate Classes'!C38, 0) -> 0 | D40: =IF(ISERROR(VLOOKUP($B40, '3. Rate Classes'!$C$24:$H$45,6,0)), "", VLOOKUP($B40, '3. Rate Classes'!$C$24:$H$45,6,0)) ->  | F40: =VLOOKUP($B40, '11. Adj Network to Forecast WS'!$B$25:$R$48,17,0) ->  | H40: =VLOOKUP($B40, '12. Adj Conn. to Forecast WS'!$B$25:$R$48,17,0) -> 
B41: =IF('3. Rate Classes'!Q39=1,'3. Rate Classes'!C39, 0) -> 0 | D41: =IF(ISERROR(VLOOKUP($B41, '3. Rate Classes'!$C$24:$H$45,6,0)), "", VLOOKUP($B41, '3. Rate Classes'!$C$24:$H$45,6,0)) ->  | F41: =VLOOKUP($B41, '11. Adj Network to Forecast WS'!$B$25:$R$48,17,0) ->  | H41: =VLOOKUP($B41, '12. Adj Conn. to Forecast WS'!$B$25:$R$48,17,0) -> 
B42: =IF('3. Rate Classes'!Q40=1,'3. Rate Classes'!C40, 0) -> 0 | D42: =IF(ISERROR(VLOOKUP($B42, '3. Rate Classes'!$C$24:$H$45,6,0)), "", VLOOKUP($B42, '3. Rate Classes'!$C$24:$H$45,6,0)) ->  | F42: =VLOOKUP($B42, '11. Adj Network to Forecast WS'!$B$25:$R$48,17,0) ->  | H42: =VLOOKUP($B42, '12. Adj Conn. to Forecast WS'!$B$25:$R$48,17,0) -> 
B43: =IF('3. Rate Classes'!Q41=1,'3. Rate Classes'!C41, 0) -> 0 | D43: =IF(ISERROR(VLOOKUP($B43, '3. Rate Classes'!$C$24:$H$45,6,0)), "", VLOOKUP($B43, '3. Rate Classes'!$C$24:$H$45,6,0)) ->  | F43: =VLOOKUP($B43, '11. Adj Network to Forecast WS'!$B$25:$R$48,17,0) ->  | H43: =VLOOKUP($B43, '12. Adj Conn. to Forecast WS'!$B$25:$R$48,17,0) -> 
B44: =IF('3. Rate Classes'!Q42=1,'3. Rate Classes'!C42, 0) -> 0 | D44: =IF(ISERROR(VLOOKUP($B44, '3. Rate Classes'!$C$24:$H$45,6,0)), "", VLOOKUP($B44, '3. Rate Classes'!$C$24:$H$45,6,0)) ->  | F44: =VLOOKUP($B44, '11. Adj Network to Forecast WS'!$B$25:$R$48,17,0) ->  | H44: =VLOOKUP($B44, '12. Adj Conn. to Forecast WS'!$B$25:$R$48,17,0) -> 
B45: =IF('3. Rate Classes'!Q43=1,'3. Rate Classes'!C43, 0) -> 0 | D45: =IF(ISERROR(VLOOKUP($B45, '3. Rate Classes'!$C$24:$H$45,6,0)), "", VLOOKUP($B45, '3. Rate Classes'!$C$24:$H$45,6,0)) ->  | F45: =VLOOKUP($B45, '11. Adj Network to Forecast WS'!$B$25:$R$48,17,0) ->  | H45: =VLOOKUP($B45, '12. Adj Conn. to Forecast WS'!$B$25:$R$48,17,0) -> 
B46: =IF('3. Rate Classes'!Q44=1,'3. Rate Classes'!C44, 0) -> 0 | D46: =IF(ISERROR(VLOOKUP($B46, '3. Rate Classes'!$C$24:$H$45,6,0)), "", VLOOKUP($B46, '3. Rate Classes'!$C$24:$H$45,6,0)) ->  | F46: =VLOOKUP($B46, '11. Adj Network to Forecast WS'!$B$25:$R$48,17,0) ->  | H46: =VLOOKUP($B46, '12. Adj Conn. to Forecast WS'!$B$25:$R$48,17,0) -> 
B47: =IF('3. Rate Classes'!Q45=1,'3. Rate Classes'!C45, 0) -> 0 | D47: =IF(ISERROR(VLOOKUP($B47, '3. Rate Classes'!$C$24:$H$45,6,0)), "", VLOOKUP($B47, '3. Rate Classes'!$C$24:$H$45,6,0)) ->  | F47: =VLOOKUP($B47, '11. Adj Network to Forecast WS'!$B$25:$R$48,17,0) ->  | H47: =VLOOKUP($B47, '12. Adj Conn. to Forecast WS'!$B$25:$R$48,17,0) -> 

Sheet hidden1 (hidden)
A1: =IF('3. Rate Classes'!Q24=1, '3. Rate Classes'!C24, "") -> Embedded Distributor | B1: 1
A2: =IF('3. Rate Classes'!Q25=1, '3. Rate Classes'!C25, "") ->  | B2: 2
A3: =IF('3. Rate Classes'!Q26=1, '3. Rate Classes'!C26, "") ->  | B3: 3
A4: =IF('3. Rate Classes'!Q27=1, '3. Rate Classes'!C27, "") ->  | B4: 4
A5: =IF('3. Rate Classes'!Q28=1, '3. Rate Classes'!C28, "") ->  | B5: 5
A6: =IF('3. Rate Classes'!Q29=1, '3. Rate Classes'!C29, "") ->  | B6: 6
A7: =IF('3. Rate Classes'!Q30=1, '3. Rate Classes'!C30, "") ->  | B7: 7
A8: =IF('3. Rate Classes'!Q31=1, '3. Rate Classes'!C31, "") ->  | B8: 8
A9: =IF('3. Rate Classes'!Q32=1, '3. Rate Classes'!C32, "") ->  | B9: 9
A10: =IF('3. Rate Classes'!Q33=1, '3. Rate Classes'!C33, "") ->  | B10: 10
A11: =IF('3. Rate Classes'!Q34=1, '3. Rate Classes'!C34, "") ->  | B11: 11
A12: =IF('3. Rate Classes'!Q35=1, '3. Rate Classes'!C35, "") ->  | B12: 12
A13: =IF('3. Rate Classes'!Q36=1, '3. Rate Classes'!C36, "") ->  | B13: 13
A14: =IF('3. Rate Classes'!Q37=1, '3. Rate Classes'!C37, "") ->  | B14: 14
A15: =IF('3. Rate Classes'!Q38=1, '3. Rate Classes'!C38, "") ->  | B15: 15
A16: =IF('3. Rate Classes'!Q39=1, '3. Rate Classes'!C39, "") ->  | B16: 16
A17: =IF('3. Rate Classes'!Q40=1, '3. Rate Classes'!C40, "") ->  | B17: 17
A18: =IF('3. Rate Classes'!Q41=1, '3. Rate Classes'!C41, "") ->  | B18: 18
A19: =IF('3. Rate Classes'!Q42=1, '3. Rate Classes'!C42, "") ->  | B19: 19
A20: =IF('3. Rate Classes'!Q43=1, '3. Rate Classes'!C43, "") ->  | B20: 20
A21: =IF('3. Rate Classes'!Q44=1, '3. Rate Classes'!C44, "") ->  | B21: 21
A22: =IF('3. Rate Classes'!Q45=1, '3. Rate Classes'!C45, "") ->  | B22: 22
